Cogmind - Beta 16 @@@ ROGUE MODE // 2025.10.26 @ 17:10:52 Player: Cog on my mind Result: Destroyed by MAIN.C with Omega Cannon Performance ------------- Evolutions (9) 4500 Regions Visited (29) 5800 Robots Destroyed (422) 2110 Value Destroyed (20507) 20507 Prototype IDs (104) 2080 Alien Tech Used (5) 1000 Bonus (16331) 16331 TOTAL SCORE: 52328 Bonus ------- High Alert Combat Kills 330 Follower Combat Kills 1994 Met Data Miner 300 Met Imprinter 300 Met Zhirov 300 Found Hidden Lab 3000 Scanned by Researcher 500 Destroyed MAIN.C Guards 500 Met MAIN.C 5000 Destroyed MAIN.C Shell 5000 Friendly Fire -893 Cogmind --------- Core Integrity 0/1600 Matter 300/300 Energy 98/100 System Corruption 15% Temperature Cool (0) Movement Core (50) Location -1/Command Parts ------- > --- POWER (3) -------- (None) > --- PROPULSION (6) --- (None) > --- UTILITY (14) ----- Advanced Target Analyzer > --- WEAPON (3) ------- (None) > --- INVENTORY (5) ---- Singularity Reactor Advanced Trap Extractor (0/8) Ragnarok Missile Launcher Peak State ------------ > --- POWER ------------ Singularity Reactor > --- PROPULSION ------- Advanced VSS Leg Biometal Leg Enhanced Biometal Leg Enhanced Biometal Leg Heavy Shield Leg > --- UTILITY ---------- High-capacity Storage Unit Spectral Analyzer Experimental Signal Interpreter Experimental Melee Analysis Suite Nanoactuators Nanoactuators Advanced Phase Shifter SHELL Armor Improved Focal Shield Advanced EM Shield AEGIS Remote Shield Advanced Point Defense System > --- WEAPON ----------- Null Cannon Vibroblade Vibroblade > --- INVENTORY -------- Quantum Reactor Quantum Reactor Enhanced Biometal Leg Heavy Shield Leg Experimental Energy Well Experimental Matter Compressor Structural Scanner Advanced Sensor Array Advanced Sensor Array Experimental Terrain Scanner Advanced Phase Shifter Advanced Thermal Shield Advanced Force Field Advanced Component Analysis Suite Advanced Trap Extractor Transdimensional Reconstructor Core Regenerator Ragnarok Missile Launcher Nanosword [Rating: 237] Favorites ----------- Power Fission Core Engine Improved Deuterium Engine Power Core Fission Core Reactor Quantum Reactor Propulsion Improved VSS Leg Treads Light Treads Leg Improved VSS Leg Utility High-capacity Storage Unit Device Structural Scanner Storage High-capacity Storage Unit Processor Enhanced Optical Array Hackware Improved Hacking Suite Protection Improved Medium Armor Plating Weapon Vibroblade Energy Gun Medium Laser Energy Cannon Improved EM Pulse Cannon Ballistic Gun Subdweller Machine Gun Ballistic Cannon Battle Cannon Launcher Grenade Launcher Special Weapon Mining Laser Impact Weapon Impact Mace Slashing Weapon Vibroblade Piercing Weapon Spear Build | -11 -10 -10 -8 -7 -7 -7 -7 -7 -7 -6 -6 -6 -6 -6 -5 -5 -5 -4 -4 -4 -4 -3 -3 -3 -3 -2 -2 -1 -1 ------- Run | Yrd Mat Sub Mat Fac Was Fac Low Low Zio Pro Fac Low Low Dat Pro Fac Ext Fac Upp Upp Zhi Pro Res Arm Lab Res Tes Acc Com Slots Evolved 18 | . . . 4 2 . . . . . . 2 . . . . 2 . 2 . . . . 2 . . 2 . 2 . Power 2 | . . . . . . . . . . . 1 . . . . . . . . . . . . . . . . 1 . Propulsion 4 | . . . 2 1 . . . . . . . . . . . . . 1 . . . . . . . . . . . Utility 11 | . . . 2 1 . . . . . . 1 . . . . 2 . 1 . . . . 1 . . 2 . 1 . Weapon 1 | . . . . . . . . . . . . . . . . . . . . . . . 1 . . . . . . Parts Attached 277 | 7 6 9 33 4 . 8 4 4 1 4 29 4 1 . . 20 10 36 5 1 5 3 21 23 2 9 10 12 6 Power 34 | 1 1 1 5 . . 1 . . . 1 8 . . . . 4 . 3 1 . 1 . 2 2 . . . 1 2 Engine 11 | 1 1 1 3 . . 1 . . . . 4 . . . . . . . . . . . . . . . . . . Core 11 | . . . 2 . . . . . . 1 4 . . . . 3 . 1 . . . . . . . . . . . Reactor 12 | . . . . . . . . . . . . . . . . 1 . 2 1 . 1 . 2 2 . . . 1 2 Propulsion 69 | 2 2 1 13 1 . 1 . . . . 9 . . . . 1 3 13 . . 1 . 4 8 . 2 4 3 1 Treads 9 | 2 2 1 3 . . . . . . . . . . . . . . 1 . . . . . . . . . . . Leg 60 | . . . 10 1 . 1 . . . . 9 . . . . 1 3 12 . . 1 . 4 8 . 2 4 3 1 Wheel . | . . . . . . . . . . . . . . . . . . . . . . . . . . . . . . Hover . | . . . . . . . . . . . . . . . . . . . . . . . . . . . . . . Flight . | . . . . . . . . . . . . . . . . . . . . . . . . . . . . . . Utility 123 | 2 1 1 7 3 . 5 3 2 . 1 6 4 1 . . 14 7 16 3 1 3 . 14 9 . 6 4 7 3 Device 64 | 1 . 1 4 1 . 1 2 1 . 1 2 3 1 . . 10 2 7 2 1 1 . 6 5 . 4 2 4 2 Storage 10 | 1 1 . . . . 1 . . . . 1 . . . . . . 1 . . 1 . . 1 . . 1 2 . Processor 14 | . . . 1 . . 1 . . . . . 1 . . . 2 . 3 . . . . 3 1 . . . 1 1 Hackware 11 | . . . 1 . . 1 . . . . 1 . . . . . . 4 . . 1 . 2 . . 1 . . . Protection 24 | . . . 1 2 . 1 1 1 . . 2 . . . . 2 5 1 1 . . . 3 2 . 1 1 . . Artifact . | . . . . . . . . . . . . . . . . . . . . . . . . . . . . . . Weapon 51 | 2 2 6 8 . . 1 1 2 1 2 6 . . . . 1 . 4 1 . . 3 1 4 2 1 2 1 . Energy Gun 4 | 1 . . 1 . . . . . . . . . . . . . . . . . . . . . 1 . 1 . . Energy Cannon 10 | . . . 5 . . . . . . . . . . . . . . 1 . . . 1 . 1 1 . 1 . . Ballistic Gun 5 | 1 1 2 . . . . . . . . . . . . . . . . . . . . . 1 . . . . . Ballistic Cannon 2 | . . 2 . . . . . . . . . . . . . . . . . . . . . . . . . . . Launcher 9 | . 1 1 . . . . 1 . . 1 2 . . . . . . 1 . . . 1 . . . . . 1 . Special Weapon 4 | . . 1 . . . . . . . . . . . . . . . . 1 . . 1 . . . 1 . . . Impact Weapon 2 | . . . . . . 1 . 1 . . . . . . . . . . . . . . . . . . . . . Slashing Weapon 13 | . . . 2 . . . . 1 1 1 4 . . . . . . 2 . . . . 1 1 . . . . . Piercing Weapon 2 | . . . . . . . . . . . . . . . . 1 . . . . . . . 1 . . . . . Special Melee Weapon . | . . . . . . . . . . . . . . . . . . . . . . . . . . . . . . Unidentified Prototypes 45 | . . . 1 . . 1 1 . . 1 4 . . . . 2 . 5 1 1 4 . 6 7 2 . 4 3 2 Parts Lost 71 | . 1 . 12 . . 1 . 3 . . 6 . . . . 11 4 5 . . . . 1 2 . . 1 3 21 Power 8 | . . . 2 . . . . 1 . . 1 . . . . 1 . 1 . . . . . . . . . . 2 Propulsion 21 | . 1 . 4 . . 1 . . . . 4 . . . . 1 1 1 . . . . . . . . 1 . 7 Utility 33 | . . . 2 . . . . 1 . . . . . . . 8 3 3 . . . . 1 2 . . . 3 10 Weapon 9 | . . . 4 . . . . 1 . . 1 . . . . 1 . . . . . . . . . . . . 2 Highest Loss Streak 18 | . 1 . 7 . . 1 . 2 . . 4 . . . . 3 2 1 . . . . 1 1 . . 1 2 18 To Critical Strikes 1 | . . . . . . . . . . . . . . . . . 1 . . . . . . . . . . . . Average Backups 17 | 2 9 14 13 12 14 16 18 17 17 18 18 14 14 14 14 17 18 19 20 19 20 19 19 18 18 17 18 17 16 Power 1 | . 1 1 . 1 1 . . . . . . 1 1 1 1 2 4 2 1 1 1 1 1 1 1 1 1 1 1 Propulsion 3 | 1 3 6 3 . 1 2 3 3 3 4 4 3 3 3 3 3 3 2 3 3 2 2 2 2 2 2 2 2 1 Utility 9 | . 1 2 4 5 8 9 10 10 9 8 11 9 9 9 9 10 9 11 12 11 12 11 12 11 12 10 10 9 9 Weapon 2 | . 3 4 4 5 4 4 4 3 3 3 1 1 1 1 1 1 1 2 3 3 3 3 2 2 2 2 2 2 1 Tool/Special . | . . . . . . . . . . . . . . . . . . . . . . . . . . . . . . Unused Backups 64 | . 1 2 8 . . 4 2 . . 2 11 . . . . . 1 8 1 . 1 . 9 5 1 2 5 . 1 Power 5 | . 1 . . . . . . . . . . . . . . . . 2 . . . . 1 . . 1 . . . Propulsion 22 | . . 2 8 . . . . . . 1 2 . . . . . 1 1 . . . . 3 4 . . . . . Utility 31 | . . . . . . 3 2 . . 1 8 . . . . . . 4 1 . 1 . 3 1 1 1 4 . 1 Weapon 5 | . . . . . . 1 . . . . 1 . . . . . . 1 . . . . 1 . . . 1 . . Tool/Special 1 | . . . . . . . . . . . . . . . . . . . . . . . 1 . . . . . . Average Slot Usage (%) 92 | . 99 100 82 84 86 92 93 93 88 92 86 92 93 93 93 88 89 97 99 99 99 100 99 99 94 93 87 79 76 Engine 3 | . 13 14 6 6 6 5 5 4 . . 2 5 6 6 6 1 . . . . . . . . . . . . . Core 2 | . . . 1 . . . . . . 3 6 5 6 6 6 7 11 6 5 5 3 . . . . . . . . Reactor 2 | . . . . . . . . . . . . . . . . 1 . 3 5 5 6 10 9 9 9 8 8 3 4 Treads 3 | . 27 28 11 . . . . . . . . . . . . . . . . . . . . . . . . . . Leg 21 | . . . 14 25 26 23 22 22 22 22 19 24 25 25 25 21 22 29 30 30 30 30 27 27 27 23 19 19 17 Device 16 | . 14 14 12 20 20 13 11 10 5 11 8 17 18 18 18 18 17 16 20 19 19 20 21 21 21 19 16 22 23 Storage 5 | . 14 14 7 6 6 5 5 5 5 5 5 5 6 6 6 5 5 5 5 5 5 5 4 4 4 4 4 3 2 Processor 9 | . . . 1 6 6 10 11 11 11 11 9 5 6 6 6 10 11 14 15 15 15 15 13 13 13 12 12 11 11 Hackware 4 | . . . 6 . . 3 5 5 5 5 5 5 6 6 6 5 4 5 5 5 5 5 4 3 . 3 4 2 . Protection 5 | . . . 2 5 6 5 8 11 16 10 8 5 6 6 6 5 5 5 5 5 4 5 4 4 4 7 7 4 2 Energy Cannon 1 | . . . 9 6 6 10 10 9 . . . . . . . . . . . . . . . . . . . . . Ballistic Gun 1 | . 13 8 2 . . . . . . . . . . . . . . . . . . . . . . . . . . Slashing Weapon 9 | . . . . 6 6 7 11 11 19 21 17 12 11 12 12 8 4 6 9 10 10 9 12 12 12 11 11 10 10 Peak Build Rating 237 | 7 8 15 51 53 53 74 76 79 78 83 113 98 79 79 79 95 95 134 134 132 139 138 163 185 189 208 220 235 237 Average Rating 105 | 5 7 11 35 51 52 63 73 75 77 78 103 78 78 79 78 84 91 118 131 131 134 137 151 173 186 199 213 227 216 On Entrance 100 | . 7 8 15 46 53 53 71 76 75 76 80 98 79 79 79 79 90 88 133 132 132 138 138 163 185 189 199 217 225 Avg Prop Armor Cover (%) 7 | . . . 14 . . . . 7 7 8 . . . . . . . . . . . . 5 . . . 11 . 11 Naked Turns . | . . . . . . . . . . . . . . . . . . . . . . . . . . . . . . Heaviest Build 168 | 14 29 33 46 49 49 74 82 82 71 69 93 83 88 83 84 90 92 116 109 109 113 120 118 125 124 134 144 163 168 Greatest Support 178 | 40 40 40 85 95 95 103 103 103 73 103 111 88 88 88 88 91 102 128 128 128 135 135 138 178 178 178 178 168 178 Greatest Overweight (x) 1 | . 1 . . . . . . . . . 1 . . . . 1 1 1 . . . . 1 . . . 1 . 1 Average Overweight (x) . | . . . . . . . . . . . . . . . . . . . . . . . . . . . . . . Largest Inventory Capacity 20 | 8 15 15 15 15 15 20 20 20 20 20 20 20 20 20 20 20 20 20 20 20 20 20 20 20 20 20 20 20 20 Average Capacity 18 | 7 12 15 15 15 15 17 20 20 20 20 20 20 20 20 20 20 20 20 20 20 20 20 20 20 20 20 20 20 19 Most Carried 20 | 6 15 15 15 15 15 19 20 20 20 20 20 19 15 15 15 20 20 20 20 20 20 20 20 20 20 20 20 20 20 Average Carried 17 | 3 9 14 13 12 14 16 18 19 19 20 19 15 15 15 15 18 19 19 19 19 19 19 19 19 19 18 19 18 18 Final Capacity 20 | 8 15 15 15 15 15 20 20 20 20 20 20 20 20 20 20 20 20 20 20 20 20 20 20 20 20 20 20 20 5 Final Carried 20 | 6 15 15 14 15 15 18 20 19 20 20 19 15 15 15 15 20 20 20 20 20 20 20 20 19 20 19 20 19 5 Class Distribution -------------------- 22% | Mutant 22% | Gladiator 18% | Scavenger-Mutant 14% | Trapper-Gladiator 10% | Hacker-Gladiator 5% | Scientist-Gladiator 3% | Scavenger-Gladiator Dominant Class ---------------- Mutant | -10/Materials Mutant | -10/Subcaves Mutant | -8/Materials Scavenger-Mutant | -7/Factory Scavenger-Mutant | -7/Waste Scavenger-Mutant | -7/Factory Scavenger-Mutant | -7/Lower Caves Scavenger-Mutant | -7/Lower Caves Mutant | -7/Zion Scavenger-Mutant | -6/Proximity Caves Mutant | -6/Factory Gladiator | -6/Lower Caves Gladiator | -6/Lower Caves Gladiator | -6/Data Miner Gladiator | -5/Proximity Caves Gladiator | -5/Factory Gladiator | -5/Extension Scientist-Gladiator | -4/Factory Trapper-Gladiator | -4/Upper Caves Trapper-Gladiator | -4/Upper Caves Trapper-Gladiator | -4/Zhirov Trapper-Gladiator | -3/Proximity Caves Trapper-Gladiator | -3/Research Commander-Gladiator | -3/Armory Commander-Gladiator | -3/Lab Hacker-Gladiator | -2/Research Hacker-Gladiator | -2/Testing Hacker-Gladiator | -1/Access Gladiator | -1/Command Resources | -11 -10 -10 -8 -7 -7 -7 -7 -7 -7 -6 -6 -6 -6 -6 -5 -5 -5 -4 -4 -4 -4 -3 -3 -3 -3 -2 -2 -1 -1 ----------- Run | Yrd Mat Sub Mat Fac Was Fac Low Low Zio Pro Fac Low Low Dat Pro Fac Ext Fac Upp Upp Zhi Pro Res Arm Lab Res Tes Acc Com Matter Collected 12672 | 285 413 277 688 . . 499 228 93 41 123 3388 107 108 . 62 396 185 1523 305 58 109 193 738 1036 . 526 538 358 395 Remotely . | . . . . . . . . . . . . . . . . . . . . . . . . . . . . . . Salvage Created 22706 | 115 598 150 1717 . . 827 212 441 . 240 2709 . 42 . . 2254 794 2559 485 . 219 287 1668 1083 . 1370 2038 1598 1300 Parts 1067 | 14 36 17 80 . . 48 24 20 . 12 130 . 2 . . 109 41 88 21 . 2 11 102 38 . 69 92 82 29 Haulers Intercepted 23 | . 2 . 1 . . 2 . . . . 4 . . . . 3 . 5 . . . . 4 . . 1 1 . . Recyclers Shooed 5 | . 2 . 1 . . 1 . . . . 1 . . . . . . . . . . . . . . . . . . Parts Field Recycled . | . . . . . . . . . . . . . . . . . . . . . . . . . . . . . . Retrieved Matter . | . . . . . . . . . . . . . . . . . . . . . . . . . . . . . . Parts Self-Destructed 104 | . . 2 . . . . 13 19 . 10 . 7 6 . 2 . . . 33 . 2 10 . . . . . . . Prevented 4 | . . . . . . . 3 1 . . . . . . . . . . . . . . . . . . . . . Parts Restored . | . . . . . . . . . . . . . . . . . . . . . . . . . . . . . . Kills | -11 -10 -10 -8 -7 -7 -7 -7 -7 -7 -6 -6 -6 -6 -6 -5 -5 -5 -4 -4 -4 -4 -3 -3 -3 -3 -2 -2 -1 -1 ------- Run | Yrd Mat Sub Mat Fac Was Fac Low Low Zio Pro Fac Low Low Dat Pro Fac Ext Fac Upp Upp Zhi Pro Res Arm Lab Res Tes Acc Com Combat Hostiles Destroyed 318 | . 12 9 35 . . 8 8 9 . 8 19 . 4 . . 36 12 29 6 . . 7 17 18 . 19 27 23 12 Melee 204 | . . . . . . 4 . 7 . 1 19 . . . . 32 7 24 6 . . 1 17 16 . 14 27 21 8 Guns 15 | . 6 4 5 . . . . . . . . . . . . . . . . . . . . . . . . . . Cannons 20 | . . 2 12 . . 2 1 1 . . . . . . . . . 1 . . . 1 . . . . . . . AOE 74 | . 6 3 16 . . . 7 . . 7 . . 4 . . 4 5 4 . . . 5 . 2 . 5 . 2 4 Classes Destroyed 20 | 3 4 1 5 . . 2 1 . . . 1 . . . . . . 1 . . . . . . . . 1 1 . Worker 15 | 1 1 . 2 . . . . . . . 5 . . . . 1 1 3 . . . . . . . . . 1 . Builder 10 | . . . 4 . . . . . . . 2 . . . . 3 1 . . . . . . . . . . . . Tunneler 13 | 2 1 . 2 . . . . . . . 2 . . . . 2 . 3 . . . . 1 . . . . . . Hauler 23 | . 2 . 1 . . 2 . . . . 4 . . . . 3 . 5 . . . . 4 . . 1 1 . . Recycler 17 | 1 1 . . . . 2 . . . . 9 . . . . 1 1 1 . . . . . . . . . . 1 Minesweeper 2 | . . . . . . . 1 . . . . . . . . . . . 1 . . . . . . . . . . Mechanic 3 | . . . 1 . . 1 . . . . . . . . . . . 1 . . . . . . . . . . . Operator 3 | . . . . . . 1 . . . . . . . . . . . . . . . . 1 . . . . . 1 Watcher 15 | . 3 . 3 . . 1 . . . . . . . . . . 1 1 . . . . 3 1 . 1 . 1 . Swarmer 68 | . 3 4 . . . . 7 2 . 3 4 . 3 . . 13 4 3 . . . 4 . 5 . 5 4 4 . Grunt 88 | . 9 . 25 . . . . 3 . 4 . . 1 . . 5 3 14 5 . . . 1 5 . 4 5 1 3 Brawler 1 | . . . . . . . . . . . . . . . . . . 1 . . . . . . . . . . . Duelist 6 | . . . 2 . . . . . . . . . . . . . . 1 . . . 2 . . . . . . 1 Researcher 2 | . . . . . . . . . . . . . . . . . . . . . . . . . . . 2 . . Sentry 32 | . . . 6 . . 4 1 2 . 1 2 . . . . 3 2 2 1 . . 1 2 1 . 2 . 2 . Specialist 10 | . . . . . . . . . . . 2 . . . . 4 . . . . . . . . . 1 3 . . Hunter 23 | . . . 2 . . . . . . . 5 . . . . 1 1 . . . . . . 4 . 2 3 4 1 Programmer 73 | . . . . . . 4 . 2 . . 6 . . . . 10 1 8 . . . . 14 2 . 5 12 6 3 Q-Series 6 | . . . . . . . . . . . . . . . . . . . . . . . . . . . . 6 . Armor Guard 1 | . . . . . . . . . . . . . . . . . . . . . . . . 1 . . . . . M Guard 1 | . . . . . . . . . . . . . . . . . . . . . . . . . . . . . 1 Combat Programmer 2 | . . . . . . . . . . . . . . . . . . . . . . . . . . . . . 2 Subdweller 5 | . . 5 . . . . . . . . . . . . . . . . . . . . . . . . . . . Thug 1 | . . . . . . . . . . . . . . . . . 1 . . . . . . . . . . . . Best Kill Streak 14 | 2 4 4 14 . . 2 4 4 . 7 7 . 3 . . 6 6 6 3 . . 4 5 3 . 5 4 6 5 Combat Bots Only 9 | . 3 4 9 . . 1 4 4 . 7 4 . 3 . . 6 5 4 3 . . 4 3 3 . 5 4 6 4 Max Kills in Single Turn 5 | 1 2 2 4 . . 1 4 1 . 5 1 . 2 . . 3 4 2 1 . . 3 1 2 . 5 1 2 3 Gunslinging . | . . . . . . . . . . . . . . . . . . . . . . . . . . . . . . Exploded 5 | . 2 2 3 . . . 4 . . 5 . . 2 . . 3 3 2 . . . 3 . 2 . 5 . 2 2 Melee 2 | . . . . . . 1 . 1 . 1 1 . . . . 2 1 1 1 . . 1 1 2 . 1 1 1 1 Uniques/NPCs Destroyed 2 | . . . . . . . . . . . . . . . . . 1 . . . . . . . . . . . 1 A7 (-5/Extension) MAIN.C Shell (-1/Command) Combat | -11 -10 -10 -8 -7 -7 -7 -7 -7 -7 -6 -6 -6 -6 -6 -5 -5 -5 -4 -4 -4 -4 -3 -3 -3 -3 -2 -2 -1 -1 -------- Run | Yrd Mat Sub Mat Fac Was Fac Low Low Zio Pro Fac Low Low Dat Pro Fac Ext Fac Upp Upp Zhi Pro Res Arm Lab Res Tes Acc Com Hostile Shots Fired 2564 | . 62 32 140 . 1 86 18 82 . 17 305 1 18 . . 197 76 256 16 . . 14 93 87 . 127 193 249 494 Missed 896 | . 17 9 41 . 1 34 10 25 . 9 80 . 3 . . 68 22 97 8 . . 8 36 37 . 61 78 78 174 Intercepted 25 | . . . . . . . . . . . . . . . . . . . . . . . . . . . . . 25 Deflected 29 | . . . . . . . . . . . 1 . . . . 10 7 . . . . . . . . . 1 6 4 Hits 1668 | . 45 23 99 . . 52 8 57 . 8 225 1 15 . . 129 54 159 8 . . 6 57 50 . 66 115 171 320 Melee 13 | . . . 5 . . . . . . . . . . . . . . 3 . . . . . 5 . . . . . Projectile 1655 | . 45 23 94 . . 52 8 57 . 8 225 1 15 . . 129 54 156 8 . . 6 57 45 . 66 115 171 320 AOE 27 | . . . . . . . . . . . . . . . . 1 . . . . . . . 5 . . . 1 20 Critical Strikes 82 | . . 1 6 . . 3 . 1 . . 6 . . . . 5 4 11 1 . . . 3 5 . 1 5 5 25 Actively Blocked 1 | . . . . . . . . . . . . . . . . . . 1 . . . . . . . . . . . Part Disruptions 11 | . . . . . . . . . . . 1 . . . . . . . . 1 . . 2 . . . 1 . 6 Damage Taken 24850 | . 516 330 1787 . . 497 134 777 . 136 3516 10 148 . 13 2130 836 1971 73 30 . 78 422 647 . 724 1017 2080 6978 Core 3633 | . 104 33 160 . . 78 6 73 . 16 483 . 17 . . 264 65 105 . . . . 57 50 . 34 49 66 1973 Absorbed by Shields 10871 | . . . . . . . . 40 . . . 10 156 . 14 292 306 1475 75 32 . 79 425 683 . 689 954 1987 3654 Redirected to Shielding 205 | . . . . . . . . . . . . . . . . . . 47 . . . . . . . 69 69 20 . Ignored by Resistances 3505 | . . . . . . . . . . . . . . . . . . . . . . . 501 . . 258 247 508 1991 Regen/Repaired (Parts) 4454 | . . . . . . 325 . . 924 . 251 . . . . 219 . 147 . . . . 27 . . . 470 813 1278 Core Remaining (%) 74 | 100 . 45 70 . . . . . . 75 . . . . 41 . 67 . . . . 90 . . 91 . 94 . . Volleys Fired 307 | 15 70 53 90 . . 16 7 4 . 3 . . 6 . . 2 3 14 . . . 6 1 2 . 3 3 1 8 Largest 2 | 2 2 2 2 . . 2 2 2 . 1 . . 1 . . 1 1 1 . . . 1 1 1 . 1 1 1 1 Hottest 138 | 70 70 100 138 . . 138 138 138 . 39 . . 43 . . 43 43 105 . . . 113 113 113 . 100 100 70 130 Shots Fired 475 | 30 128 70 148 . . 30 9 8 . 3 . . 6 . . 2 3 14 . . . 6 1 2 . 3 3 1 8 Gun 204 | 30 121 17 36 . . . . . . . . . . . . . . . . . . . . . . . . . . Cannon 183 | . . 27 92 . . 30 4 8 . . . . . . . . . 11 . . . 1 1 1 . 1 3 . 4 Launcher 60 | . 7 2 20 . . . 5 . . 3 . . 6 . . 2 3 3 . . . 2 . 1 . 1 . 1 4 Special 28 | . . 24 . . . . . . . . . . . . . . . . . . . 3 . . . 1 . . . Kinetic 142 | 15 63 39 25 . . . . . . . . . . . . . . . . . . . . . . . . . . Thermal 171 | 15 58 29 47 . . . . . . . . . . . . . . 11 . . . 1 1 1 . 1 3 . 4 Explosive 60 | . 7 2 20 . . . 5 . . 3 . . 6 . . 2 3 3 . . . 2 . 1 . 1 . 1 4 Electromagnetic 98 | . . . 56 . . 30 4 8 . . . . . . . . . . . . . . . . . . . . . Robot Hit Streak 18 | 7 14 17 18 . . 10 5 8 . 3 . . 4 . . 1 3 6 . . . 2 . . . 2 . 3 3 Robot Miss Streak 4 | 3 3 2 4 . . 2 1 1 . . . . 2 . . . . 2 . . . 2 . . . . . . 3 Penetration Max . | . . . . . . . . . . . . . . . . . . . . . . . . . . . . . . Secondary Targets . | . . . . . . . . . . . . . . . . . . . . . . . . . . . . . . Shots Hit Robots 1333 | 14 79 25 110 . . 37 5 34 . 4 118 1 8 . 1 129 48 125 23 . 6 4 82 62 . 60 98 93 167 Core Hits 607 | 7 38 12 83 . . 16 10 9 . 12 44 . 10 . . 54 27 55 7 . 1 9 30 22 . 30 38 36 57 Critical Kills . | . . . . . . . . . . . . . . . . . . . . . . . . . . . . . . Critical Parts Destroyed . | . . . . . . . . . . . . . . . . . . . . . . . . . . . . . . Critical Strikes 132 | 1 3 1 . . . 3 . 4 . . 8 . 1 . . 16 9 16 3 . . 1 7 12 . 9 14 15 9 Burn 4 | 1 3 . . . . . . . . . . . . . . . . . . . . . . . . . . . . Destroy 1 | . . 1 . . . . . . . . . . . . . . . . . . . . . . . . . . . Sever 124 | . . . . . . 3 . 4 . . 8 . 1 . . 16 8 14 3 . . 1 7 12 . 9 14 15 9 Impale 3 | . . . . . . . . . . . . . . . . . 1 2 . . . . . . . . . . . Melee Attacks 1532 | . . . 2 4 7 32 6 40 . 2 194 5 11 . 3 170 55 181 29 4 6 2 142 92 11 86 139 120 189 Impact 3 | . . . . . . . . 3 . . . . . . . . . . . . . . . . . . . . . Slashing 1506 | . . . 2 4 7 32 6 37 . 2 194 5 11 . 3 169 46 168 29 4 6 2 142 92 11 86 139 120 189 Piercing 23 | . . . . . . . . . . . . . . . . 1 9 13 . . . . . . . . . . . Sneak Attacks 78 | . . . 2 . . 3 1 . . . 28 . . . . 14 6 13 1 . . . 6 . . 1 3 . . Combat Hostiles 2 | . . . . . . . . . . . . . . . . . 1 . . . . . 1 . . . . . . Follow-up Attacks 233 | . . . . . . 2 . 8 . . 30 . 2 . . 8 8 11 5 . . . 20 21 . 14 25 25 54 Martial Strikes 34 | . . . . . . . . . . . . . . . . 28 6 . . . . . . . . . . . . Damage Inflicted 70960 | 147 1155 661 4447 . . 1202 615 1142 . 635 5826 40 793 . 41 6543 2803 6913 1395 . 646 692 4894 3857 . 3795 5880 6071 10767 Guns 1628 | 147 811 235 435 . . . . . . . . . . . . . . . . . . . . . . . . . . Cannons 3305 | . . 184 1924 . . 605 75 178 . . . . . . . . . 178 . . . 40 . . . . . . 121 Explosions 8855 | . 344 242 1956 . . . 478 . . 555 . . 514 . . 567 745 611 . . . 541 . 290 . 428 . 425 1159 Melee 57076 | . . . 125 . . 597 62 964 . 80 5826 40 279 . 41 5976 2058 6124 1395 . 646 111 4894 3567 . 3367 5880 5557 9487 Ramming 96 | . . . 7 . . . . . . . . . . . . . . . . . . . . . . . . 89 . Kinetic 1096 | 58 320 383 335 . . . . . . . . . . . . . . . . . . . . . . . . . . Thermal 1991 | 89 491 36 855 . . . . . . . . . . . . . . 178 . . . 40 . . . 181 . . 121 Explosive 8455 | . 344 242 1737 . . . 478 . . 555 . . 514 . . 567 745 611 . . . 541 . 290 . 247 . 425 1159 Electromagnetic 2246 | . . . 1388 . . 605 75 178 . . . . . . . . . . . . . . . . . . . . . Impact 62 | . . . . . . . . 62 . . . . . . . . . . . . . . . . . . . . . Slashing 56552 | . . . 125 . . 597 62 902 . 80 5826 40 279 . 41 5943 1832 5921 1395 . 646 111 4894 3567 . 3367 5880 5557 9487 Piercing 462 | . . . . . . . . . . . . . . . . 33 226 203 . . . . . . . . . . . Highest Corruption 15 | . . . 2 . . 4 4 6 6 . 5 5 . . . 9 . 12 12 13 13 13 8 8 8 4 11 8 15 Average Corruption 5 | . . . 1 . . 1 3 5 6 . 3 2 . . . 5 . 5 12 12 13 13 3 8 8 2 6 3 11 Corruption Purged 21 | . . . . . . . 4 . . . . 5 . . . 11 . . . . . . 1 . . . . . . Corruption Blocked . | . . . . . . . . . . . . . . . . . . . . . . . . . . . . . . Effects 440 | . . . 21 . . 10 6 4 5 . 35 3 . . . 40 . 62 38 25 8 22 31 34 4 14 33 14 31 Message Errors 105 | . . . 4 . . 1 1 1 . . 12 . . . . 9 . 9 9 10 2 9 8 6 2 2 10 4 6 Matter Fused 115 | . . . 6 . . 5 1 2 2 . 9 1 . . . 11 . 23 12 3 5 2 7 6 1 4 4 4 7 Heat Flow Errors 64 | . . . 5 . . 2 1 . 1 . 3 . . . . 6 . 9 7 6 1 . 3 7 . 3 4 3 3 Energy Discharges 54 | . . . 1 . . . . 1 1 . 5 1 . . . 9 . 4 4 2 . 4 3 4 1 1 6 2 5 Parts Rejected 6 | . . . . . . . . . . . . . . . . 1 . 1 . . . . 3 . . . 1 . . Parts Fused 5 | . . . . . . . . . . . 2 . . . . . . . . . . 2 . 1 . . . . . Data Loss (minor) 48 | . . . 1 . . . 2 . 1 . 3 1 . . . 2 . 7 3 3 . 3 4 7 . 2 5 . 4 Data Loss (major) 28 | . . . 2 . . 1 1 . . . 1 . . . . 1 . 6 2 1 . 1 3 2 . 1 2 1 3 Misfires 1 | . . . 1 . . . . . . . . . . . . . . . . . . . . . . . . . . Alerts 8 | . . . . . . 1 . . . . . . . . . 1 . 2 . . . 1 . 1 . 1 1 . . Misdirections 5 | . . . . . . . . . . . . . . . . . . 1 1 . . . . . . . . . 3 Weapon Failures 1 | . . . 1 . . . . . . . . . . . . . . . . . . . . . . . . . . Overload Shots . | . . . . . . . . . . . . . . . . . . . . . . . . . . . . . . Overflow Damage 4037 | . . 18 109 . . 84 . 67 . . 766 . 4 . . 504 113 451 191 . 137 68 436 297 . 109 300 284 99 Projectiles 72 | . . . 37 . . 17 . . . . . . . . . . . 18 . . . . . . . . . . . Explosions 326 | . . 18 72 . . . . . . . . . . . . 31 8 . . . . 68 . 80 . 42 . . 7 Melee 3639 | . . . . . . 67 . 67 . . 766 . 4 . . 473 105 433 191 . 137 . 436 217 . 67 300 284 92 Knockbacks 3 | . . 3 . . . . . . . . . . . . . . . . . . . . . . . . . . . Impact . | . . . . . . . . . . . . . . . . . . . . . . . . . . . . . . Kinetic 3 | . . 3 . . . . . . . . . . . . . . . . . . . . . . . . . . . Secondary . | . . . . . . . . . . . . . . . . . . . . . . . . . . . . . . Self-Inflicted Damage 285 | . . . 163 . . . 52 . . 26 . . . . . . . 44 . . . . . . . . . . . Shots 8 | . . . 5 . . . 1 . . 1 . . . . . . . 1 . . . . . . . . . . . Rammed . | . . . . . . . . . . . . . . . . . . . . . . . . . . . . . . Targets Rammed 2 | . . . 1 . . . . . . . . . . . . . . . . . . . . . . . . 1 . Kicked 2 | . . . 1 . . . . . . . . . . . . . . . . . . . . . . . . 1 . Crushed . | . . . . . . . . . . . . . . . . . . . . . . . . . . . . . . Highest Temperature 362 | 182 294 . 317 . . 213 227 252 260 3 226 . 16 . . 254 7 362 246 277 106 68 223 283 . 238 264 139 244 Average Temperature 97 | 77 91 . 85 . . 63 85 106 139 3 70 . 5 . . 104 6 130 105 127 62 22 84 95 . 101 108 67 104 Received Heat Transfer 2744 | . 258 66 702 . . 48 . 117 . 33 261 4 44 . . 205 130 307 14 . . . 22 100 . 64 53 216 100 Effects 9 | . 3 . . . . . . . 1 . . . . . . . . 4 . . . . . . . . . . 1 Energy Bleed 3 | . . . . . . . . . 1 . . . . . . . . 1 . . . . . . . . . . 1 Interference 6 | . 3 . . . . . . . . . . . . . . . . 3 . . . . . . . . . . . Siege Activations . | . . . . . . . . . . . . . . . . . . . . . . . . . . . . . . Martial Activations 14 | . . . . . . . . . . . 1 . . . . 11 2 . . . . . . . . . . . . Total Turns 343 | . . . . . . . . . . . 37 . . . . 247 59 . . . . . . . . . . . . Longest Duration 69 | . . . . . . . . . . . 37 . . . . 69 52 . . . . . . . . . . . . Shielding Activations 8 | . . . . . . . . . . . . . . . . . . . . . . . . . . . 3 4 1 Total Turns 126 | . . . . . . . . . . . . . . . . . . . . . . . . . . . 33 57 36 Longest Duration 36 | . . . . . . . . . . . . . . . . . . . . . . . . . . . 19 24 36 Robots Disrupted . | . . . . . . . . . . . . . . . . . . . . . . . . . . . . . . Combat Hostiles . | . . . . . . . . . . . . . . . . . . . . . . . . . . . . . . Robots Corrupted 4 | . . . 1 . . 2 . 1 . . . . . . . . . . . . . . . . . . . . . Combat Hostiles 4 | . . . 1 . . 2 . 1 . . . . . . . . . . . . . . . . . . . . . Parts Fried 20 | . . . 9 . . 5 . 4 . . . . . . . . . . . . . . . . . . . 2 . Impact Corruptions 1 | . . . . . . . . . . . . . . . . . . . . . . . . . . . . 1 . Robots Melted 1 | . . . 1 . . . . . . . . . . . . . . . . . . . . . . . . . . Combat Hostiles 1 | . . . 1 . . . . . . . . . . . . . . . . . . . . . . . . . . Parts Melted 8 | . . . 4 . . . . . . . . . . . . . . 2 . . . . . 2 . . . . . Heat Transferred 4149 | 333 1665 111 1643 . . . . . . . . . . . . . . 185 . . . 37 . . . 150 . . 25 Parts Sabotaged . | . . . . . . . . . . . . . . . . . . . . . . . . . . . . . . Parts Stolen . | . . . . . . . . . . . . . . . . . . . . . . . . . . . . . . Parts Stripped . | . . . . . . . . . . . . . . . . . . . . . . . . . . . . . . Power Chain Reactions 4 | . . . 3 . . . . . . . . . . . . . . . . . . . . . . 1 . . . Alert | -11 -10 -10 -8 -7 -7 -7 -7 -7 -7 -6 -6 -6 -6 -6 -5 -5 -5 -4 -4 -4 -4 -3 -3 -3 -3 -2 -2 -1 -1 ------- Run | Yrd Mat Sub Mat Fac Was Fac Low Low Zio Pro Fac Low Low Dat Pro Fac Ext Fac Upp Upp Zhi Pro Res Arm Lab Res Tes Acc Com Maximum Alert Level 2 | . . . 2 . . . . . . . . . . . . 1 2 2 . . . . 1 2 . 1 1 1 1 Low Security (%) 57 | 100 100 . 45 100 100 100 . . . . 100 . . . . 17 74 25 . . . . 86 55 . 11 72 19 . Level 1 37 | . . . 48 . . . . . . . . . . . . 82 1 58 . . . . 13 29 . 88 27 80 99 Level 2 4 | . . . 6 . . . . . . . . . . . . . 23 15 . . . . . 15 . . . . . Level 3 . | . . . . . . . . . . . . . . . . . . . . . . . . . . . . . . Level 4 . | . . . . . . . . . . . . . . . . . . . . . . . . . . . . . . Level 5 . | . . . . . . . . . . . . . . . . . . . . . . . . . . . . . . High Security . | . . . . . . . . . . . . . . . . . . . . . . . . . . . . . . Max Security . | . . . . . . . . . . . . . . . . . . . . . . . . . . . . . . Peak Influence 693 | 5 194 . 438 199 54 74 . . . . 92 . . . . 392 693 537 . . . . 239 654 . 317 286 393 376 Initial 335 | . . . . 193 54 . . . . . . . . . . . 179 335 . . . . . 114 . . 155 161 236 Average 166 | 1 89 . 173 175 12 18 . . . . 45 . . . . 281 145 285 . . . . 92 214 . 222 144 245 282 Influence Increases 13094 | 20 459 110 1149 42 4 343 260 240 . 161 725 99 231 . 33 1403 1147 1137 135 15 10 150 851 1419 . 929 864 731 427 Destroy 0b10 Robot/C 7340 | . 240 80 700 . . 160 160 180 . 160 380 80 180 . 20 880 600 580 120 . . 140 400 560 . 440 580 460 240 Destroy 0b10 Robot/NC 565 | 20 40 . 65 . . 35 5 . . . 110 . . . . 55 40 70 5 . 10 . 55 15 . 15 5 10 10 Destroy Leader 1490 | . 50 . 178 . . 86 20 . . . 138 10 30 . 10 188 76 108 10 . . 10 114 126 . 102 72 122 40 Allied During Kill 990 | . . . . . . 6 . . . 1 . 9 21 . 3 31 235 . . . . . 9 527 . 148 . . . Trap Triggered on 0b10 100 | . . . . . . . . . . . 10 . . . . . . 20 . . . . . . . 20 . 10 40 Successful Hack 477 | . . . 28 24 . 49 . . . . 32 . . . . 69 12 83 . . . . 60 8 . 30 42 36 4 Disable Machine 375 | . 45 . 30 15 . . . . . . . . . . . . 45 45 . . . . 30 60 . 15 75 15 . Destroy Structure 872 | . 54 . 118 3 4 7 . . . . 25 . . . . 90 64 96 . . . . 168 48 . 69 30 48 48 Partial Spotted 45 | . 15 . . . . . . . . . . . . . . . . 15 . . . . . . . . . 15 . Lose Combat Pursuer 840 | . 15 30 30 . . . 75 60 . . 30 . . . . 90 75 120 . 15 . . 15 75 . 90 60 15 45 Influence Decreases 12903 | 20 340 229 722 314 159 288 315 206 34 161 666 158 186 45 33 1037 828 1286 633 53 10 150 632 990 648 652 871 631 606 Entered New Map 2378 | . . 58 . 234 101 . 21 . 34 . . 23 . 45 . . 187 350 199 8 . . . 105 648 . 122 109 134 Time Decay 7809 | 20 330 171 452 80 58 288 294 186 . 161 504 135 186 . 33 607 306 696 434 45 10 150 554 425 . 462 478 482 262 Lost Part 680 | . 10 . 120 . . . . 20 . . 60 . . . . 110 40 50 . . . . 10 10 . . 10 30 210 Lost Ally 735 | . . . . . . . . . . . 20 . . . . 20 145 40 . . . . 10 300 . 190 . 10 . Purge Threat 1301 | . . . 150 . . . . . . . 82 . . . . 300 150 150 . . . . 58 150 . . 261 . . Squads Dispatched 99 | . 2 . 7 2 . 5 . . . . 10 . . . . 16 1 18 . . . . 10 5 . 7 9 5 2 Investigation 21 | . 2 . 4 2 . 2 . . . . . . . . . 3 . 5 . . . . . 1 . 1 . 1 . Extermination 40 | . . . . . . 3 . . . . 6 . . . . 4 . 6 . . . . 7 3 . 3 4 3 1 Reinforcement 29 | . . . 3 . . . . . . . 4 . . . . 6 . 3 . . . . 3 1 . 3 4 1 1 Assault 2 | . . . . . . . . . . . . . . . . . 1 1 . . . . . . . . . . . Garrison 7 | . . . . . . . . . . . . . . . . 3 . 3 . . . . . . . . 1 . . Intercept . | . . . . . . . . . . . . . . . . . . . . . . . . . . . . . . Searches Triggered . | . . . . . . . . . . . . . . . . . . . . . . . . . . . . . . Unchained Authorized 2 | . . . . . . . . . . . . . . . . . . . . . . . . . . 1 . 1 . Data Miner Redirects 3 | . . . . . . . . . . . . . . . . 1 . 2 . . . . . . . . . . . Construction Impeded 3 | . . . 2 . . . . . . . . . . . . 1 . . . . . . . . . . . . . Haulers Reinforced 7 | . . . . . . . . . . . 1 . . . . 1 . 2 . . . . 2 . . . 1 . . Active Scanning Responses . | . . . . . . . . . . . . . . . . . . . . . . . . . . . . . . Cargo Convoy Interrupts 1 | . . . . . . . . . . . . . . . . 1 . . . . . . . . . . . . . Stealth | -11 -10 -10 -8 -7 -7 -7 -7 -7 -7 -6 -6 -6 -6 -6 -5 -5 -5 -4 -4 -4 -4 -3 -3 -3 -3 -2 -2 -1 -1 --------- Run | Yrd Mat Sub Mat Fac Was Fac Low Low Zio Pro Fac Low Low Dat Pro Fac Ext Fac Upp Upp Zhi Pro Res Arm Lab Res Tes Acc Com Distress Signals 27 | . . . 4 . . . . . . . 2 . . . . 2 1 3 . . . . 3 3 . 3 3 2 1 Communications Jammed . | . . . . . . . . . . . . . . . . . . . . . . . . . . . . . . Distress Signals . | . . . . . . . . . . . . . . . . . . . . . . . . . . . . . . Times Spotted 549 | . 16 9 47 . 6 12 10 14 . 8 35 3 9 . 1 57 40 59 7 1 . 6 31 38 . 39 39 41 21 Peak Tracking Total 13 | . 4 6 9 . 6 2 5 5 . 7 8 3 3 . 1 9 9 5 3 1 . 4 4 8 . 9 6 13 7 Tactical Retreats 33 | . 1 1 2 . . . 1 1 . . 2 . . . . 5 1 6 . 1 . . 1 3 . 4 1 1 2 Traps | -11 -10 -10 -8 -7 -7 -7 -7 -7 -7 -6 -6 -6 -6 -6 -5 -5 -5 -4 -4 -4 -4 -3 -3 -3 -3 -2 -2 -1 -1 ------- Run | Yrd Mat Sub Mat Fac Was Fac Low Low Zio Pro Fac Low Low Dat Pro Fac Ext Fac Upp Upp Zhi Pro Res Arm Lab Res Tes Acc Com Traps Triggered 26 | . 5 . 5 1 . . . . . . 3 . . . . 3 1 3 . 1 . . 1 1 . 1 1 . . Indirectly . | . . . . . . . . . . . . . . . . . . . . . . . . . . . . . . Trap Hack Attempts . | . . . . . . . . . . . . . . . . . . . . . . . . . . . . . . Triggered . | . . . . . . . . . . . . . . . . . . . . . . . . . . . . . . Disarmed . | . . . . . . . . . . . . . . . . . . . . . . . . . . . . . . Reprogrammed . | . . . . . . . . . . . . . . . . . . . . . . . . . . . . . . Reused 11 | . . . . . . . 1 . . . 1 . . . . . . 2 . . . . . . . 2 . 1 4 Traps Extracted 3 | . . . . . . . 2 . . . . . . . . . . . 1 . . . . . . . . . . Installed 13 | . . . . . . . 2 . . . 1 . . . . . . 2 . . . . . . . 2 . 1 5 Triggered 11 | . . . . . . . 1 . . . 1 . . . . . . 2 . . . . . . . 2 . 1 4 Most Traps Carried 8 | . . . . . . . 3 4 4 4 4 3 3 3 3 3 3 3 8 8 8 8 8 8 8 8 6 6 5 Machines | -11 -10 -10 -8 -7 -7 -7 -7 -7 -7 -6 -6 -6 -6 -6 -5 -5 -5 -4 -4 -4 -4 -3 -3 -3 -3 -2 -2 -1 -1 ---------- Run | Yrd Mat Sub Mat Fac Was Fac Low Low Zio Pro Fac Low Low Dat Pro Fac Ext Fac Upp Upp Zhi Pro Res Arm Lab Res Tes Acc Com Machines Disabled 34 | . 3 1 2 1 . . 1 . . 1 . . . . . . 5 3 1 1 . . 2 4 1 1 6 1 . Max in Single Turn 2 | . 2 1 1 1 . . 1 . . 1 . . . . . . 1 1 1 1 . . 1 1 1 1 1 1 . Garrison Access 8 | . . . . . . . . . . . 2 . . . . . . 1 . . . . 1 . . 2 1 1 . Energy Cycler 2 | . . . . . . . . . . . . . . . . . 1 . . . . . . 1 . . . . . Machines Repaired . | . . . . . . . . . . . . . . . . . . . . . . . . . . . . . . Machines Dismantled . | . . . . . . . . . . . . . . . . . . . . . . . . . . . . . . Machines Sabotaged . | . . . . . . . . . . . . . . . . . . . . . . . . . . . . . . Overloaded Fab Kills . | . . . . . . . . . . . . . . . . . . . . . . . . . . . . . . Hacking | -11 -10 -10 -8 -7 -7 -7 -7 -7 -7 -6 -6 -6 -6 -6 -5 -5 -5 -4 -4 -4 -4 -3 -3 -3 -3 -2 -2 -1 -1 --------- Run | Yrd Mat Sub Mat Fac Was Fac Low Low Zio Pro Fac Low Low Dat Pro Fac Ext Fac Upp Upp Zhi Pro Res Arm Lab Res Tes Acc Com Machines Accessed 148 | . 1 2 9 3 . 9 1 2 1 1 17 1 . 3 . 16 4 19 3 3 4 . 15 5 . 12 12 3 2 Terminals 85 | . 1 . 7 3 . 4 . . . 1 8 . . . . 9 4 11 1 1 . . 10 5 . 6 10 2 2 Fabricators 15 | . . . . . . 2 . . . . 3 . . . . 2 . 5 . . . . . . . 3 . . . Repair Stations 5 | . . . . . . 1 . . . . 1 . . . . 1 . 1 . . . . 1 . . . . . . Recycling Units 1 | . . . . . . . . . . . 1 . . . . . . . . . . . . . . . . . . Scanalyzers 14 | . . . 1 . . 2 . . . . 2 . . . . 3 . 1 . . . . 3 . . 1 1 . . Garrison Access 10 | . . . 1 . . . . . . . 2 . . . . 1 . 1 . . . . 1 . . 2 1 1 . Total Hacks 422 | . 3 4 34 8 . 29 1 8 3 2 55 1 . 22 . 45 8 62 8 3 17 . 38 10 . 24 29 6 2 Successful 242 | . . 4 12 1 . 11 1 8 3 2 31 1 . 22 . 22 2 32 8 3 17 . 23 3 . 13 18 4 1 Failed 176 | . 3 . 22 7 . 17 . . . . 23 . . . . 23 6 30 . . . . 14 7 . 10 11 2 1 Catastrophic 22 | . . . . 3 . 3 . . . . 3 . . . . 3 1 5 . . . . 2 1 . 1 . . . Database Lockouts 4 | . . . . . . 1 . . . . 1 . . . . . . . . . . . 1 . . 1 . . . Manual 160 | . . . 16 7 . 9 . . . . 26 . . . . 24 6 28 1 . . . 14 9 . 10 8 1 1 Terminals 251 | . 3 . 26 8 . 10 . . . 2 37 . . . . 28 8 43 1 1 . . 28 10 . 13 26 5 2 Fabricators 37 | . . . . . . 6 . . . . 7 . . . . 6 . 12 . . . . . . . 6 . . . Repair Stations 16 | . . . . . . 6 . . . . 2 . . . . 2 . 4 . . . . 2 . . . . . . Recycling Units 2 | . . . . . . . . . . . 2 . . . . . . . . . . . . . . . . . . Scanalyzers 37 | . . . 5 . . 7 . . . . 5 . . . . 7 . 2 . . . . 7 . . 2 2 . . Garrison Access 14 | . . . 3 . . . . . . . 2 . . . . 2 . 1 . . . . 1 . . 3 1 1 . Terminal Hacks 143 | . . 4 7 . . 1 1 8 3 2 15 1 . 22 . 7 1 15 8 3 17 . 12 1 . 2 10 2 1 Record 29 | . . 3 . . . . . 7 . 2 . . . 2 . . . 1 7 2 5 . . . . . . . . Part Schematic 25 | . . . . . . . . . 3 . 2 . . 13 . . . 3 . . 4 . . . . . . . . Robot Schematic 4 | . . . . . . . . . . . . . . 4 . . . . . . . . . . . . . . . Robot Analysis 8 | . . . 2 . . . . . . . . . . . . . . 2 . . 4 . . . . . . . . Prototype ID Bank 16 | . . . 2 . . . . . . . 3 . . 3 . . . 1 . . 4 . 1 . . . 2 . . Open Door 7 | . . . . . . . 1 1 . . . 1 . . . . . . 1 1 . . . . . . 1 . 1 Level Access Points 1 | . . . 1 . . . . . . . . . . . . . . . . . . . . . . . . . . Branch Access Points 8 | . . . 1 . . 1 . . . . 1 . . . . 1 . 1 . . . . 1 . . 1 . 1 . Machine Index 1 | . . . . . . . . . . . . . . . . . . . . . . . . . . 1 . . . Terminal Index 5 | . . . . . . . . . . . 1 . . . . 1 . 1 . . . . . . . . 1 1 . Scanalyzer Index 1 | . . . . . . . . . . . 1 . . . . . . . . . . . . . . . . . . Alert Level 5 | . . . . . . . . . . . 1 . . . . 2 . 1 . . . . 1 . . . . . . Unreport Threat 10 | . . . 1 . . . . . . . 1 . . . . 2 1 1 . . . . 1 1 . . 2 . . Locate Traps 1 | . . . . . . . . . . . . . . . . . . . . . . . 1 . . . . . . Dispatch Records 1 | . . . . . . . . . . . . . . . . . . . . . . . 1 . . . . . . Maintenance Status 1 | . . . . . . . . . . . 1 . . . . . . . . . . . . . . . . . . Patrol Status 3 | . . . . . . . . . . . 1 . . . . . . 1 . . . . 1 . . . . . . Reinforcement Status 2 | . . . . . . . . . . . . . . . . . . 1 . . . . 1 . . . . . . Recall Extermination 4 | . . . . . . . . . . . 1 . . . . . . 1 . . . . 1 . . . 1 . . Recall Reinforcements 4 | . . . . . . . . . . . 1 . . . . . . 1 . . . . 1 . . . 1 . . Hauler Manifests 3 | . . . . . . . . . . . 1 . . . . 1 . . . . . . 1 . . . . . . Registered Prototypes 2 | . . . . . . . . . . . . . . . . . . . . . . . 1 . . . 1 . . Proto ID Catalog 1 | . . 1 . . . . . . . . . . . . . . . . . . . . . . . . . . . Protovariant Controls 1 | . . . . . . . . . . . . . . . . . . . . . . . . . . . 1 . . Fabricator Hacks 11 | . . . . . . 1 . . . . 2 . . . . 2 . 4 . . . . . . . 2 . . . Network Status 4 | . . . . . . . . . . . 1 . . . . 1 . . . . . . . . . 2 . . . Load Schematic 3 | . . . . . . . . . . . . . . . . . . 3 . . . . . . . . . . . Build 4 | . . . . . . 1 . . . . 1 . . . . 1 . 1 . . . . . . . . . . . Repair Station Hacks 14 | . . . . . . 6 . . . . 2 . . . . . . 4 . . . . 2 . . . . . . Scan Component 7 | . . . . . . 3 . . . . 1 . . . . . . 2 . . . . 1 . . . . . . Repair 7 | . . . . . . 3 . . . . 1 . . . . . . 2 . . . . 1 . . . . . . Recycling Unit Hacks 1 | . . . . . . . . . . . 1 . . . . . . . . . . . . . . . . . . Retrieve Matter 1 | . . . . . . . . . . . 1 . . . . . . . . . . . . . . . . . . Scanalyzer 20 | . . . 2 . . 2 . . . . 3 . . . . 6 . 1 . . . . 3 . . 1 2 . . Insert Component 1 | . . . . . . 1 . . . . . . . . . . . . . . . . . . . . . . . Retrieve Study 19 | . . . 2 . . 1 . . . . 3 . . . . 6 . 1 . . . . 3 . . 1 2 . . Garrison Access Hacks 8 | . . . . . . . . . . . 2 . . . . . . 1 . . . . 1 . . 2 1 1 . Seal Access 8 | . . . . . . . . . . . 2 . . . . . . 1 . . . . 1 . . 2 1 1 . Unauthorized Hacks 45 | . . . 3 1 . 1 . . . . 6 . . . . 7 1 7 . . . . 5 2 . 6 5 1 . Terminals 35 | . . . 3 1 . 1 . . . . 4 . . . . 4 1 6 . . . . 5 2 . 2 5 1 . Track 8 | . . . 1 . . . . . . . 1 . . . . 2 . 2 . . . . 1 1 . . . . . Assimilate 6 | . . . . . . . . . . . . . . . . . . 2 . . . . 2 . . . 2 . . Botnet 19 | . . . 2 1 . 1 . . . . 2 . . . . 2 1 2 . . . . 2 1 . 2 2 1 . Disrupt 1 | . . . . . . . . . . . . . . . . . . . . . . . . . . . 1 . . Operators 1 | . . . . . . . . . . . 1 . . . . . . . . . . . . . . . . . . Fabricators 9 | . . . . . . . . . . . 2 . . . . 2 . 1 . . . . . . . 4 . . . Report 3 | . . . . . . . . . . . 1 . . . . 1 . . . . . . . . . 1 . . . Liberate 1 | . . . . . . . . . . . . . . . . . . . . . . . . . . 1 . . . Haulers 4 | . . . . . . . . . . . 1 . . . . 1 . . . . . . . . . 2 . . . Recompile 1 | . . . . . . . . . . . . . . . . . . 1 . . . . . . . . . . . Repair Stations 1 | . . . . . . . . . . . . . . . . 1 . . . . . . . . . . . . . Patch 1 | . . . . . . . . . . . . . . . . 1 . . . . . . . . . . . . . Recycling Units . | . . . . . . . . . . . . . . . . . . . . . . . . . . . . . . Scanalyzers . | . . . . . . . . . . . . . . . . . . . . . . . . . . . . . . Garrison Access . | . . . . . . . . . . . . . . . . . . . . . . . . . . . . . . Data Cores Recovered 2 | . . . . . . 1 . . . . . . . . . . . . . . . . . . . . . . 1 Used 1 | . . . . . . 1 . . . . . . . . . . . . . . . . . . . . . . . Hacking Detections 114 | . 1 . 9 3 . 8 . . . 1 15 . . . . 16 4 18 . . . . 12 5 . 10 9 2 1 Full Trace Events 11 | . 1 . 1 2 . 2 . . . . . . . . . . . 3 . . . . . . . 1 . 1 . Feedback Events 1 | . . . . . . . . . . . . . . . . . . 1 . . . . . . . . . . . Corruption 1 | . . . . . . . . . . . . . . . . . . 1 . . . . . . . . . . . Feedback Blocked . | . . . . . . . . . . . . . . . . . . . . . . . . . . . . . . Robot Schematics Acquired 4 | . . . . . . . . . . . . . . 4 . . . . . . . . . . . . . . . Robots Built 4 | . . . . . . 2 . . . . 2 . . . . . . . . . . . . . . . . . . Authchips . | . . . . . . . . . . . . . . . . . . . . . . . . . . . . . . Time 185 | . . . . . . 33 . . . . 152 . . . . . . . . . . . . . . . . . . Total Robot Build Rating 14 | . . . . . . 4 . . . . 10 . . . . . . . . . . . . . . . . . . Part Schematics Acquired 29 | . . . . . . . . . 3 . 2 . . 13 . . . 3 . . 4 . . . . . 4 . . Parts Built 4 | . . . . . . . . . . . . . . . . 2 . 2 . . . . . . . . . . . Authchips . | . . . . . . . . . . . . . . . . . . . . . . . . . . . . . . Time 186 | . . . . . . . . . . . . . . . . 69 . 117 . . . . . . . . . . . Total Part Build Rating 32 | . . . . . . . . . . . . . . . . 18 . 14 . . . . . . . . . . . Part Studies Acquired 17 | . . . 2 . . . . . . . 3 . . . . 5 . 1 . . . . 3 . . 1 2 . . Parts Repaired 7 | . . . . . . 3 . . . . 1 . . . . . . 2 . . . . 1 . . . . . . Time 402 | . . . . . . 154 . . . . 50 . . . . . . 136 . . . . 62 . . . . . . Parts Recycled . | . . . . . . . . . . . . . . . . . . . . . . . . . . . . . . Recycled Matter . | . . . . . . . . . . . . . . . . . . . . . . . . . . . . . . Retrieved Matter . | . . . . . . . . . . . . . . . . . . . . . . . . . . . . . . Retrieved Components . | . . . . . . . . . . . . . . . . . . . . . . . . . . . . . . Parts Scanalyzed 1 | . . . . . . 1 . . . . . . . . . . . . . . . . . . . . . . . Part Schematics Acquired . | . . . . . . . . . . . . . . . . . . . . . . . . . . . . . . Parts Damaged . | . . . . . . . . . . . . . . . . . . . . . . . . . . . . . . Bothacking | -11 -10 -10 -8 -7 -7 -7 -7 -7 -7 -6 -6 -6 -6 -6 -5 -5 -5 -4 -4 -4 -4 -3 -3 -3 -3 -2 -2 -1 -1 ------------ Run | Yrd Mat Sub Mat Fac Was Fac Low Low Zio Pro Fac Low Low Dat Pro Fac Ext Fac Upp Upp Zhi Pro Res Arm Lab Res Tes Acc Com Used RIF Installer . | . . . . . . . . . . . . . . . . . . . . . . . . . . . . . . Robots Hacked 2 | . . . . . . . . . . . . . . . . . . . . . . 1 . . . 1 . . . Non-combat . | . . . . . . . . . . . . . . . . . . . . . . . . . . . . . . Combat . | . . . . . . . . . . . . . . . . . . . . . . . . . . . . . . Robot Hacks Applied . | . . . . . . . . . . . . . . . . . . . . . . . . . . . . . . Manual 2 | . . . . . . . . . . . . . . . . . . . . . . 1 . . . 1 . . . Relay Couplers Released . | . . . . . . . . . . . . . . . . . . . . . . . . . . . . . . Fabnet Peak Effective % . | . . . . . . . . . . . . . . . . . . . . . . . . . . . . . . Robots Rewired 28 | . . . . . . . . . . . . . . . . . 6 . . . . . . 22 . . . . . Allies Hacked 2 | . . . . . . . . . . . . . . . . . . . . . . . . 2 . . . . . Hacks Repelled . | . . . . . . . . . . . . . . . . . . . . . . . . . . . . . . Allies | -11 -10 -10 -8 -7 -7 -7 -7 -7 -7 -6 -6 -6 -6 -6 -5 -5 -5 -4 -4 -4 -4 -3 -3 -3 -3 -2 -2 -1 -1 -------- Run | Yrd Mat Sub Mat Fac Was Fac Low Low Zio Pro Fac Low Low Dat Pro Fac Ext Fac Upp Upp Zhi Pro Res Arm Lab Res Tes Acc Com Total Allies 56 | . . . . . . 2 . . 2 . 2 1 . . . . 10 2 . . . 1 2 32 . 1 1 . . Largest Group 17 | . . . . . . 2 . . 2 2 2 1 1 1 1 1 6 1 . . . 1 2 17 13 11 1 1 . Highest-Rated Group 934 | . . . . . . 30 . . 50 50 28 99 98 98 98 98 314 23 . . . 116 142 934 679 594 26 26 . Highest-Rated Ally 159 | . . . . . . 15 . . 25 25 14 99 98 98 98 98 159 23 . . . 116 116 68 68 144 26 26 . Total Orders 12 | . . . . . . . . . . . . . . . . . 8 . . . . . . . 3 1 . . . STAY 1 | . . . . . . . . . . . . . . . . . . . . . . . . . 1 . . . . ROAM 1 | . . . . . . . . . . . . . . . . . . . . . . . . . . 1 . . . FOLLOW 4 | . . . . . . . . . . . . . . . . . 2 . . . . . . . 2 . . . . EXPLORE 4 | . . . . . . . . . . . . . . . . . 4 . . . . . . . . . . . . RETURN 2 | . . . . . . . . . . . . . . . . . 2 . . . . . . . . . . . . Ally Attacks 388 | . . . . . . 5 . . . 3 1 5 12 . 6 21 148 . . . . . 13 125 . 49 . . . Total Damage 12674 | . . . . . . 62 . . . 34 . 511 792 . 478 1183 3039 . . . . . 446 4476 . 1653 . . . Kills 68 | . . . . . . . . . . . . 4 5 . 1 9 22 . . . . 1 5 16 . 5 . . . Allies Corrupted 2 | . . . . . . . . . . . . . . . . 1 . . . . . . . 1 . . . . . Allies Melted 1 | . . . . . . . . . . . . . . . . . . . . . . . . . . 1 . . . Intel | -11 -10 -10 -8 -7 -7 -7 -7 -7 -7 -6 -6 -6 -6 -6 -5 -5 -5 -4 -4 -4 -4 -3 -3 -3 -3 -2 -2 -1 -1 ------- Run | Yrd Mat Sub Mat Fac Was Fac Low Low Zio Pro Fac Low Low Dat Pro Fac Ext Fac Upp Upp Zhi Pro Res Arm Lab Res Tes Acc Com Active Infowar (turns) 32840 | 55 916 2483 1088 164 288 1320 1388 1061 1006 791 2715 1051 861 112 859 2083 1275 2907 1077 714 180 689 2011 1114 213 1212 1386 1246 575 Optics 28513 | . . . 279 164 288 1320 1388 1061 1006 791 2653 1049 861 112 859 2083 1275 2907 1077 714 180 689 2011 1114 213 1212 1386 1246 575 Sensors 11235 | . . . . . . . . . . . . . . . . . . 2174 1001 714 180 689 1844 1104 209 1002 1011 1202 105 IFF 2710 | . . . . . . . . . . . . 892 861 112 845 . . . . . . . . . . . . . . Terrain 3 | . . . . . . . . . . . . . . . . 1 . . . . . . 2 . . . . . . Structural 17375 | . . . . 164 288 1320 1247 1032 59 777 783 1041 857 112 859 2015 1275 1242 104 . . . 1477 109 . 1059 254 1202 99 Seismic 14025 | 55 916 2483 1088 164 288 1318 1385 903 2 777 1828 160 . . . 1521 1137 . . . . . . . . . . . . Machine Analysis 8049 | . . . . . . 1150 1388 1061 1006 791 2653 . . . . . . . . . . . . . . . . . . ECM 4 | . . . . . . . . . . . . . . . . . 3 . . . . . . . . . 1 . . Robot Analysis Total 8 | . . . 2 . . . . . . . . . . . . . . 2 . . 4 . . . . . . . . Derelict Logs Recovered 16 | . . 2 . . . . 3 2 1 1 . 2 2 . 1 . . . 1 1 . . . . . . . . . Drone Launches 3 | . . . . . . . . . . . . . . . . . 3 . . . . . . . . . . . . Drone Recoveries 2 | . . . . . . . . . . . . . . . . . 2 . . . . . . . . . . . . Exploration | -11 -10 -10 -8 -7 -7 -7 -7 -7 -7 -6 -6 -6 -6 -6 -5 -5 -5 -4 -4 -4 -4 -3 -3 -3 -3 -2 -2 -1 -1 ------------- Run | Yrd Mat Sub Mat Fac Was Fac Low Low Zio Pro Fac Low Low Dat Pro Fac Ext Fac Upp Upp Zhi Pro Res Arm Lab Res Tes Acc Com Turns Passed 33566 | 165 916 2483 1581 164 288 1320 1388 1061 1006 791 2737 1051 861 112 859 2083 1275 2907 1077 714 180 689 2011 1114 213 1212 1386 1246 676 Spaces Moved 23368 | 69 427 1415 885 131 133 904 1073 813 794 590 1790 900 748 95 581 1241 794 2102 994 720 160 622 1569 716 152 863 890 876 321 Core 26 | 4 . . . . . . . . . . . . . . . . . . . . . . . . . . . . 22 Treads 2177 | 65 427 1415 270 . . . . . . . . . . . . . . . . . . . . . . . . . . Legs 21165 | . . . 615 131 133 904 1073 813 794 590 1790 900 748 95 581 1241 794 2102 994 720 160 622 1569 716 152 863 890 876 299 Wheels . | . . . . . . . . . . . . . . . . . . . . . . . . . . . . . . Hover . | . . . . . . . . . . . . . . . . . . . . . . . . . . . . . . Flight . | . . . . . . . . . . . . . . . . . . . . . . . . . . . . . . Fastest Speed 50 | 50 160 160 105 111 111 111 115 115 125 115 106 106 106 106 106 106 105 95 95 95 95 97 93 94 103 103 100 99 50 Average Speed 111 | 153 160 160 126 111 111 111 115 115 125 117 113 106 106 106 106 109 107 97 95 95 96 97 96 100 103 105 106 99 106 Slowest Speed 240 | 160 240 160 160 111 111 118 115 125 125 125 230 106 106 106 106 212 212 175 95 95 97 97 175 103 103 109 166 100 182 Overloaded Moves 48 | . . . . . . . . . . . 8 . . . . 31 9 . . . . . . . . . . . . Propulsion Burnouts . | . . . . . . . . . . . . . . . . . . . . . . . . . . . . . . Robots Hopped . | . . . . . . . . . . . . . . . . . . . . . . . . . . . . . . Potential Cave-ins 3 | . . . . . 3 . . . . . . . . . . . . . . . . . . . . . . . . Cave-ins Triggered . | . . . . . . . . . . . . . . . . . . . . . . . . . . . . . . Exploration Rate (%) 65 | 5 79 60 58 5 82 27 97 96 86 73 53 98 98 74 84 41 90 56 97 85 63 86 52 61 95 32 96 32 15 Regions Visited 29 Branch Regions 18 Pre-discovered Areas 10 | . . . . . . . 1 1 3 . . 1 . . . . . . 1 . 3 . . . . . . . . Known Exits Taken 19 | . . . 1 . . 1 . . . 1 1 . 1 . 1 1 1 1 1 1 1 1 1 1 1 1 1 1 . Unknown Exits Taken 8 | 1 1 1 . . . . 1 1 1 . . 1 . 1 . . . . . . . . . . . . . . . Scrap Searched 33 | . . 5 . . . . 4 2 1 3 . 2 3 . 5 . . . 3 2 . 3 . . . . . . . Spaces Dug 348 | . . 11 19 3 7 7 36 . . 12 25 3 21 . . 40 10 32 1 1 . 25 28 32 4 10 10 11 . Terrain Destroyed 778 | . 57 11 153 3 7 7 90 . . 19 25 3 92 . . 62 25 47 1 1 . 47 28 32 4 25 10 15 14 Melee 173 | . . . . 3 7 7 4 . . . 25 3 3 . . 20 . 31 1 1 . . 27 8 4 9 9 11 . Projectile 9 | . . . 2 . . . . . . . . . . . . . . 2 . . . . 1 1 . 1 1 . 1 AOE 596 | . 57 11 151 . . . 86 . . 19 . . 89 . . 42 25 14 . . . 47 . 23 . 15 . 4 13 Terrain Rammed . | . . . . . . . . . . . . . . . . . . . . . . . . . . . . . . Walls Destroyed . | . . . . . . . . . . . . . . . . . . . . . . . . . . . . . . Machines Disabled . | . . . . . . . . . . . . . . . . . . . . . . . . . . . . . . Actions | -11 -10 -10 -8 -7 -7 -7 -7 -7 -7 -6 -6 -6 -6 -6 -5 -5 -5 -4 -4 -4 -4 -3 -3 -3 -3 -2 -2 -1 -1 --------- Run | Yrd Mat Sub Mat Fac Was Fac Low Low Zio Pro Fac Low Low Dat Pro Fac Ext Fac Upp Upp Zhi Pro Res Arm Lab Res Tes Acc Com Total 29355 | 98 543 1517 1197 144 263 1139 1202 882 807 682 2291 989 792 106 820 1793 1140 2753 1113 748 182 697 1982 1088 201 1117 1263 1210 596 Wait 3176 | 2 18 23 124 . 122 146 90 33 1 75 253 76 22 12 235 373 240 324 64 19 . 56 190 49 24 134 184 198 89 Move 23339 | 68 426 1414 884 131 132 903 1072 812 793 589 1789 899 747 94 580 1240 793 2101 993 719 159 621 1568 714 151 862 889 875 321 Hop . | . . . . . . . . . . . . . . . . . . . . . . . . . . . . . . Pick Up 206 | 6 11 5 25 4 1 12 4 . 4 3 27 1 . . . 9 6 26 2 1 2 1 15 13 4 3 8 7 6 Fast Attach 214 | 7 4 5 16 1 . 7 2 1 1 2 18 . 2 . . 18 9 21 5 2 6 . 25 23 5 7 12 9 6 Attach 78 | . 1 . 13 3 . 4 1 1 . . 8 5 . . . 7 3 10 . . . . 4 2 . 2 1 6 7 Detach 14 | . . 1 2 . . 1 . . . . 1 . . . . 3 . 2 . . . . 2 . . . 1 1 . Swap 340 | . 8 5 13 . . 12 13 4 4 4 10 3 4 . 2 6 3 61 16 1 2 10 44 18 1 30 40 13 13 Drop 319 | . 5 11 27 1 1 10 3 . 4 4 45 1 2 . . 8 9 36 10 3 7 1 32 37 7 11 22 13 9 Fire 307 | 15 70 53 90 . . 16 7 4 . 3 . . 6 . . 2 3 14 . . . 6 1 2 . 3 3 1 8 Melee 1141 | . . . 2 4 7 28 6 27 . 2 135 4 9 . 3 127 40 156 23 3 6 2 101 64 9 63 103 85 132 Ram . | . . . . . . . . . . . . . . . . . . . . . . . . . . . . . . Kick 2 | . . . 1 . . . . . . . . . . . . . . . . . . . . . . . . 1 . Crush . | . . . . . . . . . . . . . . . . . . . . . . . . . . . . . . Escape Stasis 5 | . . . . . . . . . . . 4 . . . . . . . . . . . . 1 . . . . . Rewire 201 | . . . . . . . 2 . . . . . . . . . 34 . . . . . . 165 . . . . . Trap 13 | . . . . . . . 2 . . . 1 . . . . . . 2 . . . . . . . 2 . 1 5 Miscellaneous . | . . . . . . . . . . . . . . . . . . . . . . . . . . . . . . Route ------- -11/Scrapyard -10/Materials (discovered 4 exits: [*Mat x2] / [*Min] / *Sub) -10/Subcaves -8/Materials (discovered 3 exits: *Fac x3) -7/Factory -7/Waste -7/Factory (discovered 5 exits: *Fac x2 / Sto / *Low x2) -7/Lower Caves -7/Lower Caves (discovered 2 exits: *Fac / *Zio) -7/Zion -6/Proximity Caves -6/Factory (discovered 4 exits: *Fac x2 / *Low x2) -6/Lower Caves -6/Lower Caves (discovered 2 exits: *Fac / *Dat) -6/Data Miner -5/Proximity Caves -5/Factory (discovered 7 exits: *Fac x3 / *Upp x2 / *Ext x2) -5/Extension (discovered 2 exits: *Fac / [*Cet]) -4/Factory (discovered 5 exits: *Res x3 / *Upp x2) -4/Upper Caves -4/Upper Caves (discovered 2 exits: *Res / *Zhi) -4/Zhirov -3/Proximity Caves -3/Research (discovered 3 exits: *Arm / *Qua x2) -3/Armory -3/Lab -2/Research (discovered 3 exits: *Acc / *Tes x2) -2/Testing -1/Access -1/Command History --------- Turn | Location | Event 3 | -11/Scrapyard | Discovered new exit (range 15) 166 | -11/Scrapyard | Entered Materials 300 | -10/Materials | Build established: Mutant 539 | -10/Materials | Discovered new exit (range 13) 720 | -10/Materials | Discovered new exit (range 15) 929 | -10/Materials | Discovered new exit (range 10) 1069 | -10/Materials | Discovered new exit (range 9) 1082 | -10/Materials | Entered Subcaves 1142 | -10/Subcaves | Learned Materials interactive machine intel 1155 | -10/Subcaves | A swath of the cavern ceiling suddenly collapsed 1413 | -10/Subcaves | Build established: Scavenger-Mutant 1495 | -10/Subcaves | Shifting Twisted Machinery released Battle Cannon 1800 | -10/Subcaves | Build established: Mutant 1847 | -10/Subcaves | Shifting Twisted Machinery released Multitool 2000 | -10/Subcaves | Disturbed a concealed Subdweller 2559 | -10/Subcaves | Discovered new exit (range 12) 2736 | -10/Subcaves | Learned Materials emergency access door positions 2785 | -10/Subcaves | Visited 4L-MR0's lab 2805 | -10/Subcaves | Found Gun Armor 3058 | -10/Subcaves | Visited Clippyterm 3063 | -10/Subcaves | Learned Research machine intel 3298 | -10/Subcaves | A Subdweller sparked back to life 3298 | -10/Subcaves | A Subdweller sparked back to life 3319 | -10/Subcaves | Core integrity fell below 50% 3364 | -10/Subcaves | Found Cargo Legs 3390 | -10/Subcaves | Shifting Twisted Machinery released Shrapnel Trap 3565 | -10/Subcaves | Entered Materials 3565 | -8/Materials | Evolved 4 slots: Propulsion x2, Utility x2 3567 | -8/Materials | Loaded intel: 19 interactive machine locations 3616 | -8/Materials | Identified exit to Factory 4249 | -8/Materials | Attached Cargo Legs, gained temporary slots: Utility x2 4267 | -8/Materials | Destroyed 9 combat bots 4275 | -8/Materials | Lost 7 parts (2p4n1w) 5146 | -8/Materials | Entered Factory 5146 | -7/Factory | Evolved 2 slots: Propulsion x1, Utility x1 5310 | -7/Factory | Sucked down chute 5310 | -7/Factory | Entered Waste 5331 | -7/Waste | Spotted C-40 Crusher 5426 | -7/Waste | Build established: Scavenger-Mutant 5471 | -7/Waste | Spotted C-40 Crusher 5476 | -7/Waste | Spotted C-40 Crusher 5517 | -7/Waste | Spotted C-40 Crusher 5528 | -7/Waste | Spotted C-40 Crusher 5568 | -7/Waste | Spotted C-40 Crusher 5582 | -7/Waste | Discovered new exit (range 12) 5598 | -7/Waste | Entered Factory 6052 | -7/Factory | Identified exit to Storage 6052 | -7/Factory | Identified exit to Lower Caves 6066 | -7/Factory | Discovered new exit (range 16) 6093 | -7/Factory | Attached Gun Armor, gained temporary slots: Weapon x2 6094 | -7/Factory | Fabricated Y-45 Defender? 6292 | -7/Factory | Discovered new exit (range 5) 6621 | -7/Factory | Repaired Broken Thunder Leg 6660 | -7/Factory | Repaired Carbon-fiber Leg+ 6741 | -7/Factory | Repaired Carbon-fiber Leg+ 6807 | -7/Factory | Central database locked down 6918 | -7/Factory | Entered Lower Caves 7149 | -7/Lower Caves | Attracted the attention of an 0b10 checkpoint 7369 | -7/Lower Caves | Found Alien Artifact 7369 | -7/Lower Caves | Identified Core Expander 7369 | -7/Lower Caves | Installed Core Expander, added new Utility slot 7531 | -7/Lower Caves | Attracted the attention of an 0b10 outpost 8008 | -7/Lower Caves | Encountered a Warlord checkpoint 8073 | -7/Lower Caves | Discovered new exit (range 5) 8107 | -7/Lower Caves | Found Prototype Device 8306 | -7/Lower Caves | Entered another Lower Caves area 8310 | -7/Lower Caves | Discovered new exit (range 4) 8314 | -7/Lower Caves | Encountered a Warlord checkpoint 8326 | -7/Lower Caves | Spotted B-75 Beast 8654 | -7/Lower Caves | Attracted the attention of an 0b10 checkpoint 9077 | -7/Lower Caves | Discovered new exit (range 8) 9117 | -7/Lower Caves | Learned location of 1 exit from Factory 9137 | -7/Lower Caves | Learned location of Extension (-5) 9294 | -7/Lower Caves | Learned location of 1 exit from Research 9294 | -7/Lower Caves | Learned 8 Factory zone layouts 9294 | -7/Lower Caves | Learned Extension security intel 9294 | -7/Lower Caves | Learned Extension garrison access intel 9294 | -7/Lower Caves | Learned Armory garrison access intel 9367 | -7/Lower Caves | Entered Zion 9412 | -7/Zion | Given the Hacking Drone Bay 9412 | -7/Zion | Found Prototype Device 9420 | -7/Zion | Discovered new exit (range 19) 9521 | -7/Zion | Build established: Mutant 9542 | -7/Zion | System corruption cleaned by Quarantine Array 9557 | -7/Zion | Learned location of Warlord (-5) 9571 | -7/Zion | Learned location of Storage (-7) 9783 | -7/Zion | Found CR-A16's Pointy Stick 9854 | -7/Zion | Gained Derelict followers 9932 | -7/Zion | Met Imprinter 10085 | -7/Zion | Visited the Megawrench Repair Shop 10086 | -7/Zion | Megawrench repaired 11 parts 10148 | -7/Zion | Received a hallucinogenic algorithm 10373 | -7/Zion | Entered Proximity Caves 10373 | -6/Proximity Caves | Accompanied by 2 allies 10425 | -6/Proximity Caves | Attracted the attention of an 0b10 checkpoint 10604 | -6/Proximity Caves | Attracted the attention of an 0b10 base 10632 | -6/Proximity Caves | Destroyed 7 combat bots 10640 | -6/Proximity Caves | Learned Armory garrison access intel 10640 | -6/Proximity Caves | Identified exit to Factory 10667 | -6/Proximity Caves | Build established: Scavenger-Mutant 10690 | -6/Proximity Caves | Spotted B-75 Beast 10749 | -6/Proximity Caves | Identified Hacking Drone Bay 11010 | -6/Proximity Caves | Learned 12 Factory zone layouts 11164 | -6/Proximity Caves | Entered Factory 11164 | -6/Factory | Evolved 2 slots: Power x1, Utility x1 11165 | -6/Factory | Identified exit to Factory 11166 | -6/Factory | Identified exit to Lower Caves 11632 | -6/Factory | Discovered exit to Lower Caves (range 3) 11948 | -6/Factory | Identified Heart of Steel 12249 | -6/Factory | Build established: Mutant 12489 | -6/Factory | Lost 4 parts (1p2n1w) 12706 | -6/Factory | Spotted B-75 Beast 13050 | -6/Factory | Central database locked down 13447 | -6/Factory | Repaired Arm. Leg+ 13622 | -6/Factory | Discovered exit to Factory (range 8) 13675 | -6/Factory | Fabricated E-15 Imp (x2) 13753 | -6/Factory | Found Prototype Launcher 13753 | -6/Factory | Identified Scatter Rocket Array 13844 | -6/Factory | Build established: Gladiator 13888 | -6/Factory | Core integrity fell below 50% 13901 | -6/Factory | Entered Lower Caves 13902 | -6/Lower Caves | Heart of Steel transformed into Warbot 14474 | -6/Lower Caves | Discovered new exit (range 9) 14485 | -6/Lower Caves | Learned location of 1 exit from Factory 14952 | -6/Lower Caves | Entered another Lower Caves area 14952 | -6/Lower Caves | Accompanied by 1 ally (Warbot) 15008 | -6/Lower Caves | Discovered exit to Factory (range 6) 15394 | -6/Lower Caves | Identified exit to Data Miner 15435 | -6/Lower Caves | Learned location of 1 exit from Proximity Caves 15813 | -6/Lower Caves | Entered Data Miner 15813 | -6/Data Miner | Accompanied by 1 ally (Warbot) 15813 | -6/Data Miner | Discovered new exit (range 6) 15827 | -6/Data Miner | Met Data Miner 15871 | -6/Data Miner | Acquired the access code to Warlord's prototype stash 15886 | -6/Data Miner | Received God Mode back door access code from Data Miner 15925 | -6/Data Miner | Entered Proximity Caves 15925 | -5/Proximity Caves | Accompanied by 1 ally (Warbot) 16055 | -5/Proximity Caves | Received a Behemoth hack from an annoying Tinkerer 16237 | -5/Proximity Caves | Learned 12 Factory zone layouts 16630 | -5/Proximity Caves | Spotted B-75 Beast 16642 | -5/Proximity Caves | Allies destroyed B-75 Beast 16784 | -5/Proximity Caves | Entered Factory 16784 | -5/Factory | Accompanied by 1 ally (Warbot) 16784 | -5/Factory | Evolved 2 slots: Utility x2 16785 | -5/Factory | Identified exit to Upper Caves 16785 | -5/Factory | Identified exit to Extension 16786 | -5/Factory | Identified exit to Factory 16840 | -5/Factory | Garrison activated, responded to threat 17404 | -5/Factory | Discovered exit to Factory (range 17) 17507 | -5/Factory | Fabricated Quantum Reactor (x2) 17635 | -5/Factory | Discovered exit to Factory (range 4) 17708 | -5/Factory | Cargo convoy interrupted 17991 | -5/Factory | Incoming investigation squad redirected 18284 | -5/Factory | Lost 3 parts (3u) 18609 | -5/Factory | Build established: Scavenger-Mutant 18867 | -5/Factory | Entered Extension 18975 | -5/Extension | Rescued A7 19056 | -5/Extension | Rescued a captive Derelict 19057 | -5/Extension | Rescued a captive Derelict 19065 | -5/Extension | Build established: Gladiator 19550 | -5/Extension | Spotted B-75 Beast 19703 | -5/Extension | Spotted B-75 Beast 19706 | -5/Extension | Allies destroyed B-75 Beast 19743 | -5/Extension | Allies destroyed B-75 Beast 19763 | -5/Extension | Rescued a captive Derelict 19841 | -5/Extension | Energy Cycler disabled 19844 | -5/Extension | Rescued a captive Derelict 19863 | -5/Extension | Lost 3 allies 20029 | -5/Extension | Discovered exit to Factory (range 13) 20032 | -5/Extension | Discovered new exit (range 6) 20067 | -5/Extension | First assault squad dispatched 20082 | -5/Extension | Disrupted transfer network 20112 | -5/Extension | Murdered A7 20116 | -5/Extension | Extracted ID and sensor layout for unrecognized location from A7's data core 20142 | -5/Extension | Entered Factory 20142 | -4/Factory | Accompanied by 1 ally 20142 | -4/Factory | Evolved 2 slots: Propulsion x1, Utility x1 20242 | -4/Factory | Identified exit to Upper Caves 20297 | -4/Factory | Garrison activated, responded to threat 20302 | -4/Factory | Build established: Scientist-Gladiator 20323 | -4/Factory | Spotted B-86 Titan 20857 | -4/Factory | Discovered new exit (range 12) 21079 | -4/Factory | Discovered new exit (range 18) 21167 | -4/Factory | Identified exit to Research 21385 | -4/Factory | Incoming investigation squad redirected 21485 | -4/Factory | Fabricated Nanoactuators? 22238 | -4/Factory | Build established: Gladiator 22343 | -4/Factory | System corruption reached 10% 22744 | -4/Factory | Repaired Quantum Reactor 22807 | -4/Factory | Repaired Imp. Force Field 22892 | -4/Factory | First assault squad dispatched 22916 | -4/Factory | Incoming assault squad redirected 22916 | -4/Factory | Discovered exit to Research (range 8) 23049 | -4/Factory | Entered Upper Caves 23080 | -4/Upper Caves | Attracted the attention of an 0b10 checkpoint 23391 | -4/Upper Caves | Encountered a Warlord checkpoint 23658 | -4/Upper Caves | Learned location of Armory (-3) 23668 | -4/Upper Caves | Build established: Trapper-Gladiator 23866 | -4/Upper Caves | Learned Armory emergency access door positions 23866 | -4/Upper Caves | Learned Research stockpile data 23866 | -4/Upper Caves | Learned Extension stockpile data 23866 | -4/Upper Caves | Learned Research security intel 23866 | -4/Upper Caves | Learned Extension terminal intel 23909 | -4/Upper Caves | Discovered new exit (range 11) 23935 | -4/Upper Caves | Identified exit to Upper Caves 24012 | -4/Upper Caves | Acquired the password to a Derelict Tinkerer's latest research 24019 | -4/Upper Caves | Found Prototype Special Weapon 24019 | -4/Upper Caves | Identified Molecular Deconstructor 24126 | -4/Upper Caves | Entered another Upper Caves area 24349 | -4/Upper Caves | Discovered exit to Research (range 5) 24596 | -4/Upper Caves | Learned Research emergency access door positions 24601 | -4/Upper Caves | Spotted B-86 Titan 24718 | -4/Upper Caves | Discovered new exit (range 5) 24722 | -4/Upper Caves | Identified exit to Zhirov 24750 | -4/Upper Caves | Found Alien Artifact 24750 | -4/Upper Caves | Identified Dimensional Node Initializer 24750 | -4/Upper Caves | Initialized slip node 24840 | -4/Upper Caves | Entered Zhirov 24840 | -4/Zhirov | Discovered new exit (range 3) 24841 | -4/Zhirov | Identified exit to Proximity Caves 24858 | -4/Zhirov | Met Zhirov 24876 | -4/Zhirov | Learned location of Quarantine (-3) 24876 | -4/Zhirov | Learned location of Testing (-2) 24876 | -4/Zhirov | Learned location of Command (-1) 24893 | -4/Zhirov | Zhirov requested help retrieving the SGEMP Prototype 24908 | -4/Zhirov | Found Alien Artifact 24908 | -4/Zhirov | Identified Integrated Reactor 24908 | -4/Zhirov | Installed Integrated Reactor, increased core energy generation (+10) 24923 | -4/Zhirov | Found Alien Artifact 25020 | -4/Zhirov | Entered Proximity Caves 25062 | -3/Proximity Caves | Attracted the attention of an 0b10 checkpoint 25106 | -3/Proximity Caves | Spotted B-86 Titan 25118 | -3/Proximity Caves | Befriended a Behemoth using the annoying Tinkerer's hack 25458 | -3/Proximity Caves | Discovered exit to Research (range 14) 25709 | -3/Proximity Caves | Entered Research 25709 | -3/Research | Accompanied by 1 ally 25709 | -3/Research | Evolved 2 slots: Utility x1, Weapon x1 25710 | -3/Research | Identified exit to Quarantine 25714 | -3/Research | Loaded intel: 138 machine locations 25718 | -3/Research | Found Prototype Processor 25740 | -3/Research | Discovered exit to Quarantine (range 8) 25784 | -3/Research | Found Prototype Device 25784 | -3/Research | Identified Adv. EM Shield 26029 | -3/Research | P-80 Master assimilated allied Administrator 8a 26158 | -3/Research | Identified Exp. Signal Interpreter 26299 | -3/Research | Identified exit to Armory 26480 | -3/Research | Found Prototype Device 26480 | -3/Research | Identified Exp. Terrain Scanner 26552 | -3/Research | Repaired Nanoactuators 27059 | -3/Research | Found Prototype Processor 27077 | -3/Research | Identified Spectral Analyzer 27257 | -3/Research | Central database locked down 27628 | -3/Research | Spotted B-86 Titan 27700 | -3/Research | Found Spectral Analyzer 27720 | -3/Research | Entered Armory 27721 | -3/Armory | Met VL-GR5, who suggested a friendly competition 27887 | -3/Armory | Spotted B-86 Titan 27927 | -3/Armory | Assisted by bots powering up and referring to "LRC-V3" 27982 | -3/Armory | Energy Cycler disabled 27982 | -3/Armory | Lost the competition with VL-GR5 28060 | -3/Armory | Lost 5 allies 28136 | -3/Armory | Found Exp. Melee Analysis Suite 28218 | -3/Armory | Spotted Armor Guard 28235 | -3/Armory | Destroyed Armor Guard 28238 | -3/Armory | Found Prototype Device 28238 | -3/Armory | Identified Exp. Weapon Cycler 28248 | -3/Armory | Found Prototype Reactor 28248 | -3/Armory | Identified Zero-point Reactor 28505 | -3/Armory | Discovered new exit (range 2) 28506 | -3/Armory | Identified exit to Lab 28631 | -3/Armory | Lost 4 allies 28637 | -3/Armory | Build established: Commander-Gladiator 28834 | -3/Armory | Entered Lab 28834 | -3/Lab | Accompanied by 13 allies 28834 | -3/Lab | Discovered new exit (range 9) 28842 | -3/Lab | Identified exit to Research 28846 | -3/Lab | Hidden lab's door opened automatically 28846 | -3/Lab | Sensor layout match revealed 28847 | -3/Lab | Gained access to the hidden lab's interior 28900 | -3/Lab | Found Prototype Hackware 28903 | -3/Lab | Identified Deep Network Scanner 28907 | -3/Lab | Found Prototype Energy Gun 28907 | -3/Lab | Identified Tachyon Dispersion Ray 28911 | -3/Lab | Found Prototype Energy Cannon 28911 | -3/Lab | Identified Warp Cannon 28921 | -3/Lab | Found Prototype Device 28924 | -3/Lab | Identified AEGIS Remote Shield 28967 | -3/Lab | Found Integrated Reactor 28967 | -3/Lab | Installed Integrated Reactor, increased core energy generation (+10) 28976 | -3/Lab | Found Alien Artifact 29047 | -3/Lab | Entered Research 29047 | -2/Research | Accompanied by 11 allies 29047 | -2/Research | Evolved 2 slots: Utility x2 29152 | -2/Research | Lost 4 allies 29223 | -2/Research | Spotted B-90 Cyclops 29232 | -2/Research | Central database locked down 29350 | -2/Research | Befriended a Behemoth using the annoying Tinkerer's hack 29356 | -2/Research | P-80 Master assimilated allied B-90 Cyclops 29412 | -2/Research | Discovered new exit (range 20) 29471 | -2/Research | Identified exit to Access 29514 | -2/Research | Build established: Hacker-Gladiator 29538 | -2/Research | Identified exit to Testing 30236 | -2/Research | Unchained authorized (GL-D0S) 30259 | -2/Research | Entered Testing 30396 | -2/Testing | Found Prototype Device 30407 | -2/Testing | Identified Thermal Barrier 30410 | -2/Testing | Found Prototype Processor 30415 | -2/Testing | Identified Exp. Core Analyzer 30442 | -2/Testing | Found Prototype Launcher 30458 | -2/Testing | Identified Ragnarok Missile Launcher 30499 | -2/Testing | Found Prototype Energy Gun 30499 | -2/Testing | Identified Hyp. EM Gauss Rifle 30551 | -2/Testing | Scanned by Researcher 30560 | -2/Testing | Found Prototype Protection 30560 | -2/Testing | Identified SHELL Armor 30731 | -2/Testing | Spotted Striker 30733 | -2/Testing | Spotted Striker 31191 | -2/Testing | Found Prototype Reactor 31385 | -2/Testing | Found Prototype Energy Cannon 31385 | -2/Testing | Identified Null Cannon 31428 | -2/Testing | Discovered exit to Access (range 18) 31450 | -2/Testing | Garrison activated, responded to threat 31482 | -2/Testing | System corruption reached 10% 31645 | -2/Testing | Entered Access 31645 | -1/Access | Accompanied by 1 ally 31645 | -1/Access | Evolved 2 slots: Power x1, Utility x1 31647 | -1/Access | Identified Singularity Reactor 31820 | -1/Access | Unchained authorized (GL-D0S) 31928 | -1/Access | Spotted B-99 Colossus 31929 | -1/Access | Spotted B-99 Colossus 32058 | -1/Access | Identified exit to Command 32518 | -1/Access | Spotted B-99 Colossus 32891 | -1/Access | Entered Command 32988 | -1/Command | Spotted M Guard 32988 | -1/Command | Spotted M Guard 32992 | -1/Command | Spotted Combat Programmer 32992 | -1/Command | Spotted Combat Programmer 33030 | -1/Command | System corruption reached 10% 33043 | -1/Command | Destroyed Combat Programmer 33069 | -1/Command | Destroyed Combat Programmer 33281 | -1/Command | Build established: Gladiator 33288 | -1/Command | Destroyed M Guard 33288 | -1/Command | All MAIN.C guards destroyed 33291 | -1/Command | Found Zero-point Reactor 33316 | -1/Command | Lost 3 parts (1n2u) 33396 | -1/Command | Met MAIN.C 33399 | -1/Command | 0b10 Conduit disabled 33452 | -1/Command | Destroyed MAIN.C Shell 33453 | -1/Command | MAIN.C activated Command garrisons 33546 | -1/Command | Core integrity fell below 50% 33556 | -1/Command | Core integrity fell below 20% 33558 | -1/Command | Identified Core Regenerator 33558 | -1/Command | Used Core Regenerator, restored core integrity (+400) 33560 | -1/Command | Identified Transdimensional Reconstructor 33560 | -1/Command | Failed to warp due to unstable space 33567 | -1/Command | Destroyed by MAIN.C with Omega Cannon Last Messages --------------- 33549_ Vibroblade follow-up attack on MAIN.C. 33551_ Exp. Signal Interpreter destroyed. 33551_ Critical hit (Blast). 33551_ Knocked back. 33555_ Vibroblade destroyed. 33555_ Knocked back. 33558_ Acquired Alien Artifact. 33558_ Identified Core Regenerator. 33558_ Core integrity regenerated (+400). 33560_ Acquired Alien Artifact. 33560_ Identified Transdimensional Reconstructor. 33560_ Warp failed due to unstable space. 33561_ Knocked back. 33562_ System corrupted: Component data lost. 33562_ Acquired 18 matter. 33562_ Acquired 2 matter. 33564_ Nanosword destroyed. 33564_ Critical hit (Blast). 33564_ Knocked back. Map ----- +----------------------------------------------------+ | ?????????????????????????????????????????????????? | | ?????????????????????????????????????????????????? | | ?????????????????????????????????????????????????? | | ?????????????????????????????????????????????????? | | ?????????????????????????????????????????????????? | | ?????????????????????????????????????????????????? | | ?????????????????????????????????????????????????? | | ?????????????????????????????????????????????????? | | ?????????????????????????????????????????????????? | | ?????????????????????????????????????????????????? | | ?????????????????????????????????????????????????? | | ?????????????????????????????????????????????????? | | ?????????????????????????????????????????????????? | | ????????????????###################??????????????? | | ????????????????"""" """" #??????????????? | | ???????????????? "" #??????????????? | | ????????????#????" "" ################ | | ????????????#""""""""""" ; | | ????????????#" " """ ; | | ????????????#"" """""" ; ^ | | ????????????#"" """""" ################ | | ????????????# " """""" M #??????????????? | | ????????????# " " % #??????????????? | | ????????????# " [!% !% #??????????????? | | ????????????#"""""""" !%]/ !]! """#??????????????? | | ????????????#" ! @!!!!! "#??????????????? | | ????????????# %%% !! #??????????????? | | ????????????# ! ! " #??????????????? | | ????????????# * % % #??????????????? | | ????????????" " " #??????????????? | | ????????????" " " %% " #??????????????? | | ????????????" " #??????????????? | | ????????????# """""""" #??????????????? | | ????????????# " """ " "" " #??????????????? | | ????????????# """ " " #??????????????? | | ????????????#######################??????????????? | | ?????????????????????????????????????????????????? | | ?????????????????????????????????????????????????? | | ?????????????????????????????????????????????????? | | ?????????????????????????????????????????????????? | | ?????????????????????????????????????????????????? | | ?????????????????????????????????????????????????? | | ?????????????????????????????????????????????????? | | ?????????????????????????????????????????????????? | | ?????????????????????????????????????????????????? | | ?????????????????????????????????????????????????? | | ?????????????????????????????????????????????????? | | ?????????????????????????????????????????????????? | | ?????????????????????????????????????????????????? | | ?????????????????????????????????????????????????? | +----------------------------------------------------+ Best States ------------- Heat Dissipation 52 Coolant Potential 65 Energy Generation 97 Energy Capacity 1100 Matter Stores 300 Matter Capacity 700 Sight Range 24 Robot Scan Range 16 Terrain Scan Density 10 Additional Mass Support 20 Armor Coverage 900 Resistance: KI 25 Resistance: TH 30 Resistance: EM 50 Propulsion Shielding 33 Utility Shielding 90 Point Defense Rating 240 Melee Speed Boost 50 Phase Shifting 15 Evasion (%) 85 Targeting Accuracy 8 Melee Accuracy 12 Target Analysis 8 Recoil Reduction 4 Offensive Hacking 25 Defensive Hacking 14 Authchip Count 1 Trap Extractor Capacity 8 Item Schematics ----------------- Riot Gun | -7/Zion | Free Battle Cannon | -7/Zion | Free Slug Cannon | -7/Zion | Free Adv. Melee Analysis Suite | -6/Factory | Hacked Adv. System Shield | -6/Factory | Hacked Combat Drone Bay | -6/Data Miner | Free Lgt. Regenerative Plating | -6/Data Miner | Free Cld. Gravmag System | -6/Data Miner | Free Prc. Matter Filter | -6/Data Miner | Free Neutron Cannon | -6/Data Miner | Free Shield Leg | -6/Data Miner | Free Adv. Coolant Injector | -6/Data Miner | Free Railgun | -6/Data Miner | Free Imp. Transmission Jammer | -6/Data Miner | Free Field Propulsion Array | -6/Data Miner | Free Imp. System Guard | -6/Data Miner | Free Cmb. Antigrav System | -6/Data Miner | Free Com. HERF Cannon | -6/Data Miner | Free Nanoactuators | -4/Factory | Hacked Med. Armored Exoskeleton | -4/Factory | Hacked Hvy. Shield Leg | -4/Factory | Hacked Assault Drone Bay | -4/Zhirov | Free Exp. Heat Sink | -4/Zhirov | Free Exp. Optical Array | -4/Zhirov | Free Imp. Arc Thrower | -4/Zhirov | Free Diametric Drive | -2/Testing | Archive Nanosword | -2/Testing | Archive Proton Burst Cannon | -2/Testing | Archive Exp. Actuator Array | -2/Testing | Archive Robot Schematics ------------------ L-41 Fighter | -6/Data Miner | Free Y-54 Guardian | -6/Data Miner | Free G-50 Soldier | -6/Data Miner | Free Y-64 Sentinel | -6/Data Miner | Free Fabricated ------------ Y-45 Defender | x2 | -7/Factory | Preloaded E-15 Imp | x2 | -6/Factory | Preloaded Quantum Reactor | x2 | -5/Factory | Preloaded Nanoactuators | x2 | -4/Factory Repaired ---------- Thunder Leg | 8% | -7/Factory | Broken Carbon-fiber Leg | 11% | -7/Factory Carbon-fiber Leg | 12% | -7/Factory Arm. Leg | 23% | -6/Factory Quantum Reactor | 19% | -4/Factory Imp. Force Field | 16% | -4/Factory Nanoactuators | 32% | -3/Research Studied --------- Carbon-fiber Leg | -8/Materials | Hacked Aluminum Leg | -8/Materials | Hacked Imp. Carbon-fiber Leg | -6/Factory | Hacked Flexi-carbon Leg | -6/Factory | Hacked Arm. Leg | -6/Factory | Hacked Power Sword | -5/Factory | Hacked VSS Leg | -5/Factory | Hacked Thunder Leg | -5/Factory | Hacked Lrn. Missile Launcher | -5/Factory | Hacked Imp. VSS Leg | -5/Factory | Hacked Neutrino Core | -4/Factory | Hacked Biometal Leg | -3/Research | Hacked Quantum Reactor | -3/Research | Hacked Particle Reactor | -3/Research | Hacked Hvy. Shield Leg | -2/Research | Hacked Adv. VSS Leg | -2/Testing | Hacked Imp. Thunder Leg | -2/Testing | Hacked Alien Tech Used ----------------- Core Expander Dimensional Node Initializer Integrated Reactor Core Regenerator Transdimensional Reconstructor Achievements -------------- Bending The Rules Brother of Steel Fancy Inventory Martial Artist Mistaken Identity Recruitment Drive Tailor-made That Tickles Thread The Needle Around The Corner Tune-up We Love MA Wiki Contributor Challenges ------------ None Game ------ Seed ImprovedShieldMultirail Manual? 0 Play Time 06:02:59 Cumulative 589.3 hours Start 2025.10.25 @ 21:38:29 End 2025.10.26 @ 17:10:52 Sessions 5 Manual Loads 0 Difficulty Rogue Special Mode None Game No. 128 Rogue 128 Adventurer 0 Explorer 0 Win Type - Total 43 Types 21/2/8/2/1/0/4/3/1/1 Lore% 93 Gallery% 82 Achievement% 54 Wizard Run 0 Options --------- Layout 1 ASCII 0 Keyboard 0 Movement Mouse Keybinds 0 Fullscreen 1 Font 24/Smallcaps Map View 50x35 Zoom Use 0% Tactical HUD 1 Map Filters NONE Filters NONE Steam 1 RUN: ff53e806-5ab0-44e6-a96f-d5fe69408d11